{"text_format":"1","workbook":"xlsx","n_sheets":5,"sheets":["企総（新規申込）","企総（修正・内変・訂正・取消）","企総（増額新規）","コード一覧","Col_info"],"not_rendered":{"charts":0,"images":3,"macros":1,"external_links":0,"defined_names":57,"comments":0,"pivot_tables":0},"unopened":[],"bounds":{"document_bytes":16777216,"sheet_cells":100000,"rows_first":2000,"rows_last":500,"rows_between":2000,"halvings":0,"cell_chars":16384,"cell_head_chars":4096},"cells_cut":0,"cells_raw":0,"read":"whole","date_system":"1900"}

{"sheet":"企総（新規申込）","index":0,"n_rows":134,"n_cols":195,"rows_kept":134,"cut":false,"hidden":false,"merged":[[0,24,0,25],[0,18,0,19],[0,20,0,21],[0,22,0,23],[0,26,0,27]]}
["本支店",null,"処理種別",null,"有無",null,"決済種別",null,"起算方式",null,"ユーザンス月日指定",null,"変更事由",null,"受渡条件",null,"徴収区分",null,"契約形態",null,"船積後付保率（非常）",null,"修正削除フラグ",null,"船積前てん補種別",null,"船積後てん補種別"]
[10,"10 本店",1,"1 新規",1,"1 有り",1,"1 キャッシュ",1,"1 E/S起算",1,"1 月指定","01","01 増額新規",1,"1 FOB",1,"1 一括",11,"11 輸出"," 975",0.97499999999999998,1,"1 削除",2,"2 総合",2,"2 総合"]
[15,"15 支店",2,"2 変更"," ","無し",2,"2 準キャッシュ",2,"2 L/S起算",2,"2 日指定","02","02 減額変更",2,"2 C&F",2,"2 分割",15,"15 仲介","1000",1,2,"2 修正",1,"1 非常のみ",1,"1 非常のみ"]
[null,null,3,"3 訂正",null,null,3,"3 延払",3,"3 特定日起算",null,null,"03","03 通貨の変更",3,"3 CIF",null,null,null,null,null,null,3,"3 追加","4","4 信用のみ","4","4 信用のみ"]
[null,null,null,null,null,null,null,null,null,null,null,null,"04","04 貨物の変更",4,"4 FAS"]
[null,null,null,null,null,null,null,null,null,null,null,null,"05","05 契約形態の変更",5,"5 EXW"]
[null,null,null,null,null,null,null,null,null,null,null,null,"06","06 船積予定時期の変更(追加保険料を要するもの)",6,"6 FOB Airport"]
[null,null,null,null,null,null,null,null,null,null,null,null,"10","10 支払国（ILC発行・確認国)の変更",7,"7 FRC"]
[null,null,null,null,null,null,null,null,null,null,null,null,"11","11 売相手国の変更",9,"9 その他"]
[null,null,null,null,null,null,null,null,null,null,null,null,"12","12 仕向国の変更"]
[null,null,null,null,null,null,null,null,null,null,null,null,"13","13 同一国支払人(ILC発行・確認者)の変更"]
[null,null,null,null,null,null,null,null,null,null,null,null,"14","14 同一国相手方の変更"]
[null,null,null,null,null,null,null,null,null,null,null,null,"15","15 決済条件の変更（延長）"]
[null,null,null,null,null,null,null,null,null,null,null,null,"16","16 決済条件の変更（短縮）"]
[null,null,null,null,null,null,null,null,null,null,null,null,"17","17 決済条件の変更（その他）"]
[null,null,null,null,null,null,null,null,null,null,null,null,"99","99 その他の変更"]
[]
[]
[]
["企業総合保険（証券型・一般案件）"]
[null,null,null,null,null,null,null,null,null,null,null,null,null,null,null,null,null,null,null,null,null,null,null,null,null,null,null,null,null,null,null,null,null,null,null,null,null,null,null,null,null,null,null,null,null,null,null,null,null,null,null,null,null,null,null,null,null,null,null,null,null,null,null,null,null,null,null,null,null,null,null,null,null,null,null,null,null,null,null,null,null,null,null,null,null,null,null,null,null,null,null,null,null,null,null,null,null,null,null,null,null,null,null,null,null,null,null,null,null,null,null,null,null,null,null,null,null,null,null,null,null,null,null,null,null,null,null,null,null,null,null,null,null,null,null,null,null,null,null,null,null,null,null,null,null,null,null,null,null,null,null,null,null,null,null,null,null,null,"※このボタンはNEXIで使用しますので押下しないで下さい。"]
["タイトル","シートID","処理種別","証券番号－\n本支店","証券番号－\n特約コード","証券番号－\n年度","証券番号－\n一連番号","枝番","履歴番号","申込者","被保険者","被保険者部門","保険金受取人","保険申込書\n提出日","契約形態","輸出契約等\n締結日","輸出契約等\n変更日","輸出契約等\r\n発効日","発効条件の有無","変更事由コード","元枝番","変更事項\n（新）","変更事項（旧）","変更理由","輸出契約等\n番号","輸出契約等元本","リファレンス番号","船積前\r\nてん補種別","船積後\r\nてん補種別","徴収区分","分割徴収予定日","確認管理番号－\n年度","確認管理番号－\n一連番号","内諾番号－\n年度","内諾番号－\n一連番号","事前承認番号","特殊契約\r－\nエスカレーションクローズ","特殊契約\r－\n円約款","特殊契約－\r\nキャッシュオプション","特殊契約\r－\n完成納期","特約商品－\r\nフルターン有無","特約商品－\r\nフルターン保険期間","特約商品\r－\n共同契約\rてん補範囲","特約商品－\r\nライセンス有無","特約商品－\r\nライセンス支払限度額","特約商品\r\n－支出費用\r有無","特約商品－\r\n支出費用保険期間","特約商品－\r\n支出費用保険対象額","特約商品\r\n－外貨建","他の保険契約","通貨","為替換算率","貨物","受渡条件","仕向国","支払国","支払人","支払人氏名","支払人住所","保証国","保証人","保証人氏名","保証人住所","買契約相手国","船積国","売契約相手国","売契約相手方","売契約相手方氏名","売契約相手方住所","船積No","船積修正削除フラグ","Ｆ／Ｓ\n予定日","Ｌ／Ｓ\n予定日","船積前\n保険対象額","船積後\n保険対象額","船積後付保率（非常）","決済予定日１","決済方法１","決済起算方式１","決済元本１","ユーザンス\n月日指定１","ユーザンス\n期間１","決済支払保証１","決済金利１","決済予定日２","決済方法２","決済起算方式２","決済元本２","ユーザンス\n月日指定２","ユーザンス\n期間２","決済支払保証２","決済金利２","決済予定日３","決済方法３","決済起算方式３","決済元本３","ユーザンス\n月日指定３","ユーザンス\n期間３","決済支払保証３","決済金利３","決済予定日４","決済方法４","決済起算方式４","決済元本４","ユーザンス\n月日指定４","ユーザンス\n期間４","決済支払保証４","決済金利４","決済予定日５","決済方法５","決済起算方式５","決済元本５","ユーザンス\n月日指定５","ユーザンス\n期間５","決済支払保証５","決済金利５","決済予定日６","決済方法６","決済起算方式６","決済元本６","ユーザンス\n月日指定６","ユーザンス\n期間６","決済支払保証６","決済金利６","決済予定日７","決済方法７","決済起算方式７","決済元本７","ユーザンス\n月日指定７","ユーザンス\n期間７","決済支払保証７","決済金利７","決済予定日８","決済方法８","決済起算方式８","決済元本８","ユーザンス\n月日指定８","ユーザンス\n期間８","決済支払保証８","決済金利８","決済予定日９","決済方法９","決済起算方式９","決済元本９","ユーザンス\n月日指定９","ユーザンス\n期間９","決済支払保証９","決済金利９","決済予定日１０","決済方法１０","決済起算方式１０","決済元本１０","ユーザンス\n月日指定１０","ユーザンス\n期間１０","決済支払保証１０","決済金利１０","その他","受理本支店","受理日","受理番号","決済修正\n削除フラグ１","決済種別１","決済修正\n削除フラグ２","決済種別２","決済修正\n削除フラグ３","決済種別３","決済修正\n削除フラグ４","決済種別４","決済修正\n削除フラグ５","決済種別５","個別・包括区分","増加費用\r\nてん補種別","支払区分","船主国","特約商品\r\n－予備欄","技術等提供\r\n開始日","国内販売\r\n締結日","貨物引渡日","ｴﾋﾞﾃﾞﾝｽの有無","船積前付保率（非常）","船積前付保率（信用）","船積後付保率（非常）","船積後付保率（信用）","増加費用保険対象額","増加費用\r\n付保率","予備1","決済予備１","決済予備２","決済予備３","決済予備４","決済予備５","予備2","連絡先担当部課名","連絡先担当者名","連絡先TEL"]
["出力桁数",4,1,2,9,2,6,2,2,9,9,6,9,6,2,6,6,6,"1",2,2,null,null,null,25,15,15,1,1,1,6,2,6,4,8,null,1,1,1,1,1,3,1,1,15,1,3,15,1,1,3,10,6,1,3,3,7,null,null,3,7,null,null,3,3,3,7,null,null,2,1,6,6,15,15,"4",6,2,1,15,1,3,2,15,6,2,1,15,1,3,2,15,6,2,1,15,1,3,2,15,6,2,1,15,1,3,2,15,6,2,1,15,1,3,2,15,6,2,1,15,1,3,2,15,6,2,1,15,1,3,2,15,6,2,1,15,1,3,2,15,6,2,1,15,1,3,2,15,6,2,1,15,1,3,2,15,null,2,6,5,1,1,1,1,1,1,1,1,1,1,1,1,1,3,3,6,6,6,1,3,3,3,3,15,3,29,4,4,4,4,4,318]
["ソートNo.",1,2,3,4,5,6,7,8,33,34,35,36,37,9,40,41,42,54,38,39,null,null,null,46,48,47,11,12,15,null,17,17.100000000000001,16,16.2,null,19,20,21,22,23,24,25,27,28,29,30,31,26,18,49,50,51,52,55,56,57,null,null,58,59,null,null,60,64,61,62,null,null,72,73,74,75,76,77,71,80,81,82,87,83,84,86,88,91,92,93,98,94,95,97,99,102,103,104,109,105,106,108,110,113,114,115,120,116,117,119,121,124,125,126,131,127,128,130,132,null,null,null,null,null,null,null,null,null,null,null,null,null,null,null,null,null,null,null,null,null,null,null,null,null,null,null,null,null,null,null,null,null,null,null,null,null,null,null,null,null,133,134,135,78,79,89,90,100,101,111,112,122,123,10,13,14,63,32,43,44,45,53,65,66,67,68,69,70,71.2,85,96,107,118,129,136]
["連動種別",null,null,null,null,null,null,null,null,null,null,null,null,null,null,null,null,null,null,null,null,null,null,null,null,null,null,null,null,null,null,null,null,null,null,null,null,null,null,null,null,null,null,null,null,null,null,null,null,null,null,null,null,null,null,null,null,null,null,null,null,null,null,null,null,null,null,null,null,null,null,null,null,null,null,null,null,null,null,null,null,null,null,null,null,null,null,null,null,null,null,null,null,null,null,null,null,null,null,null,null,null,null,null,null,null,null,null,null,null,null,null,null,null,null,null,null,null,null,null,null,null,null,null,null,null,null,null,null,null,null,null,null,null,null,null,null,null,null,null,null,null,null,null,null,null,null,null,null,null,null,null,null,null,null,null,null,null,null,null,"決済方法１","決済方法１","決済方法２","決済方法２","決済方法３","決済方法３","決済方法４","決済方法４","決済方法５","決済方法５"]
["属性","CHAR","CHAR","CHAR","CHAR","CHAR","CHAR","CHAR","CHAR","CHAR","CHAR","CHAR","CHAR","CHAR","CHAR","CHAR","CHAR","CHAR","CHAR","CHAR","CHAR",null,null,null,"CHAR","NUM","CHAR","CHAR","CHAR","CHAR","CHAR","CHAR","CHAR","CHAR","CHAR",null,"CHAR","CHAR","CHAR","CHAR","CHAR","NUM","CHAR","CHAR","NUM","CHAR","NUM","NUM","CHAR","CHAR","CHAR","NUM","CHAR","CHAR","CHAR","CHAR","CHAR",null,null,"CHAR","CHAR",null,null,"CHAR","CHAR","CHAR","CHAR",null,null,"CHAR","CHAR","CHAR","CHAR","NUM","NUM","NUM","CHAR","CHAR","CHAR","NUM","CHAR","NUM","CHAR","NUM","CHAR","CHAR","CHAR","NUM","CHAR","NUM","CHAR","NUM","CHAR","CHAR","CHAR","NUM","CHAR","NUM","CHAR","NUM","CHAR","CHAR","CHAR","NUM","CHAR","NUM","CHAR","NUM","CHAR","CHAR","CHAR","NUM","CHAR","NUM","CHAR","NUM","CHAR","CHAR","CHAR","NUM","CHAR","NUM","CHAR","NUM","CHAR","CHAR","CHAR","NUM","CHAR","NUM","CHAR","NUM","CHAR","CHAR","CHAR","NUM","CHAR","NUM","CHAR","NUM","CHAR","CHAR","CHAR","NUM","CHAR","NUM","CHAR","NUM","CHAR","CHAR","CHAR","NUM","CHAR","NUM","CHAR","NUM",null,"CHAR","CHAR","CHAR","CHAR","CHAR","CHAR","CHAR","CHAR","CHAR","CHAR","CHAR","CHAR","CHAR","CHAR","CHAR","CHAR","CHAR","CHAR","CHAR","CHAR","CHAR","CHAR","NUM","NUM","NUM","NUM","NUM","NUM","CHAR","CHAR","CHAR","CHAR","CHAR","CHAR","CHAR"]
["入力桁数",4,1,null,9,2,6,2,2,9,9,6,9,6,null,6,6,6,null,2,2,null,null,null,25,15,15,1,1,null,null,2,6,2,6,null,null,null,null,null,null,3,null,null,15,null,3,15,null,null,"3",10,6,null,3,3,7,null,null,3,7,null,null,3,3,3,7,null,null,2,1,6,6,15,15,null,6,2,null,15,null,3,2,15,6,2,null,15,null,3,2,15,6,2,null,15,null,3,2,15,6,2,null,15,null,3,2,15,6,2,null,15,null,3,2,15,6,2,null,15,null,3,2,15,6,2,null,15,null,3,2,15,6,2,null,15,null,3,2,15,6,2,null,15,null,3,2,15,6,2,null,15,null,3,2,15,null,2,6,5,1,1,1,1,1,1,1,1,1,1,1,1,1,3,3,6,6,6,1,3,3,3,3,15,3,29,4,4,4,4,4,318]
["小数部桁数",null,null,null,null,null,null,null,null,null,null,null,null,null,null,null,null,null,null,null,null,null,null,null,null,2,null,null,null,null,null,null,null,null,null,null,null,null,null,null,null,null,null,null,"2",null,null,2,null,null,null,"6",null,null,null,null,null,null,null,null,null,null,null,null,null,null,null,null,null,null,null,null,null,2,2,null,null,null,null,2,null,null,null,2,null,null,null,2,null,null,null,2,null,null,null,2,null,null,null,2,null,null,null,2,null,null,null,2,null,null,null,2,null,null,null,2,null,null,null,2,null,null,null,2,null,null,null,2,null,null,null,2,null,null,null,2,null,null,null,2,null,null,null,2,null,null,null,2,null,null,null,2,null,null,null,2]
["コード一覧",null,"処理種別","本支店",null,null,null,null,null,null,null,null,null,null,"契約形態",null,null,null,"有無","変更事由",null,null,null,null,null,null,null,"船積前てん補種別","船積後てん補種別","徴収区分",null,null,null,null,null,null,"有無","有無","有無","有無","有無",null,"有無","有無",null,"有無",null,null,"有無","有無","通貨",null,null,"受渡条件","国名","国名",null,null,null,"国名",null,null,null,"国名","国名","国名",null,null,null,null,"修正削除フラグ",null,null,null,null,"船積後付保率（非常）",null,"決済方法","起算方式",null,"ユーザンス月日指定",null,"支払保証",null,null,"決済方法","起算方式",null,"ユーザンス月日指定",null,"支払保証",null,null,"決済方法","起算方式",null,"ユーザンス月日指定",null,"支払保証",null,null,"決済方法","起算方式",null,"ユーザンス月日指定",null,"支払保証",null,null,"決済方法","起算方式",null,"ユーザンス月日指定",null,"支払保証",null,null,"決済方法","起算方式",null,"ユーザンス月日指定",null,"支払保証",null,null,"決済方法","起算方式",null,"ユーザンス月日指定",null,"支払保証",null,null,"決済方法","起算方式",null,"ユーザンス月日指定",null,"支払保証",null,null,"決済方法","起算方式",null,"ユーザンス月日指定",null,"支払保証",null,null,"決済方法","起算方式",null,"ユーザンス月日指定",null,"支払保証",null,null,null,null,null,"修正削除フラグ",null,"修正削除フラグ",null,"修正削除フラグ",null,"修正削除フラグ",null,"修正削除フラグ",null,null,"てん補種別",null,"国名"]
["固定値","2110","1",null,null,null,null,null,null,null,null,null,null,null,null,null,null,null,null,null,null,null,null,null,null,null,null,null,null,"1",null,null,null,null,null,null,null,null,null,null,null,null,null,null,null,null,null,null,null,null,null,null,null,null,null,null,null,null,null,null,null,null,null,null,null,null,null,null,null,"01","3",null,null,null,null,null,null,null,null,null,null,null,null,null,null,null,null,null,null,null,null,null,null,null,null,null,null,null,null,null,null,null,null,null,null,null,null,null,null,null,null,null,null,null,null,null,null,null,null,null,null,null,null,null,null,null,null,null,null,null,null,null,null,null,null,null,null,null,null,null,null,null,null,null,null,null,null,null,null,null,null,null,null,null,null,null,null,null,null,null,"3","1","3","1","3","1","3","1","3","1","4"," ","1",null,null,null,null,null,"1"]
["入力必須",null,null,"*","*","*","*",null,null,"*",null,null,null,"*","*","*",null,null,null,null,null,null,null,null,"*","*",null,null,null,null,null,null,null,null,null,null,null,null,null,null,null,null,null,null,null,null,null,null,null,null,"*",null,"*","*","*","*","*",null,null,null,null,null,null,null,null,null,null,null,null,null,null,null,"*","*",null,null,null,"*"]
["表示希望",null,null,"●","●","●","●","●",null,"●","●","●","●","●","●","●",null,"●","●",null,null,null,null,null,"●","●","●","●","●",null,null,null,null,null,null,null,"●",null,null,"●",null,null,null,null,null,null,null,null,"●","●","●","●","●","●","●","●","●",null,null,"●","●",null,null,"●","●","●","●",null,null,null,null,"●","●","●","●","●","●","●",null,"●","●","●","●","●","●","●",null,"●","●","●","●","●","●","●",null,"●","●","●","●","●","●","●",null,"●","●","●","●","●","●","●",null,"●","●","●","●","●",null,null,null,null,null,null,null,null,null,null,null,null,null,null,null,null,null,null,null,null,null,null,null,null,null,null,null,null,null,null,null,null,null,null,null,null,null,null,null,null,"●","●","●","●"]
["入力例","\"2110\"固定","新規:\"1\"固定","10 本店","123456789",17,123456,"00","00",123456789,123456789,123456,123456789,"170401","11 輸出","170401","170401","170401","1 有り","12","12",null,null,null,"test","100000.00","test","2 総合","2 総合","1 一括",null,"17","123456","17","123456",null,"1 有り","1 有り","1 有り","1 有り","1 有り","123","1 有り","1 有り",null,"1 有り","123",null,"1 有り","1 有り","001 アメリカドル","1234.567890","123456","1 FOB","123 インド","123 インド","1234567",null,null,"123 インド","1234567",null,null,"123 インド","123 インド","123 インド","1234567",null,null,"01","追加:\"3\"固定","170401","170401","100000.00","100000.00","97.5%","170401","12 L/C *** DAYS AFTER SIGHT      ","1 E/S起算","100000.00","1 月指定",123,"10 円借款","100000.00","170401","10 L/C AT SIGHT  ","1 E/S起算","100000.00","1 月指定",123,"10 円借款","100000.00","170401","10 L/C AT SIGHT  ","1 E/S起算","100000.00","1 月指定",123,"10 円借款","100000.00","170401","10 L/C AT SIGHT  ","1 E/S起算","100000.00","1 月指定",123,"10 円借款","100000.00","170401","10 L/C AT SIGHT  ","1 E/S起算","100000.00","1 月指定",123,"10 円借款","100000.00","170401","12 L/C *** DAYS AFTER SIGH","1 E/S起算","100000.00","1 月指定",123,"10 円借款","100000.00","170401","12 L/C *** DAYS AFTER SIGH","1 E/S起算","100000.00","1 月指定",123,"10 円借款","100000.00","170401","12 L/C *** DAYS AFTER SIGH","1 E/S起算","100000.00","1 月指定",123,"10 円借款","100000.00","170401","12 L/C *** DAYS AFTER SIGH","1 E/S起算","100000.00","1 月指定",123,"10 円借款","100000.00","170401","12 L/C *** DAYS AFTER SIGH","1 E/S起算","100000.00","1 月指定",123,"10 円借款","100000.00",null,"10","170401","12345","追加:\"3\"固定","ｷｬｯｼｭ:\"1\"固定","追加:\"3\"固定","ｷｬｯｼｭ:\"1\"固定","追加:\"3\"固定","ｷｬｯｼｭ:\"1\"固定","追加:\"3\"固定","ｷｬｯｼｭ:\"1\"固定","追加:\"3\"固定","ｷｬｯｼｭ:\"1\"固定","企総:\"4\"固定","ブランク固定","2年未満:\"1\"固定",null,null,null,null,null,"1固定","80%固定","80%固定","97.5%固定","90%固定"]
["桁数",4,1,"選択","9桁",2,6,2,2,9,9,6,9,6,"選択",6,6,6,"選択",2,2,null,null,null,25,15,15,"選択","選択","選択",null,2,6,2,6,null,"選択","選択","選択","選択","選択",3,"選択","選択",15,"選択",3,15,"選択","選択","選択",10,6,"選択","選択","選択",7,null,null,"選択",7,null,null,"選択","選択","選択",7,null,null,2,1,6,6,15,15,"選択",6,"選択","選択",15,"選択",3,"選択",15,6,"選択","選択",15,"選択",3,"選択",15,6,"選択","選択",15,"選択",3,"選択",15,6,"選択","選択",15,"選択",3,"選択",15,6,"選択","選択",15,"選択",3,"選択",15,6,"選択","選択",15,"選択",3,"選択",15,6,"選択","選択",15,"選択",3,"選択",15,6,"選択","選択",15,"選択",3,"選択",15,6,"選択","選択",15,"選択",3,"選択",15,6,"選択","選択",15,"選択",3,"選択",15,null,"2桁",6,5,1,1,1,1,1,1,1,1,1,1,1,1,1,3,3,6,6,6,1,3,3,3,3,15,3,29,4,4,4,4,4,318]
[{"$f":"ROW()-34","v":1}]
[{"$f":"ROW()-34","v":2}]
[3]
[4]
[5]
[6]
[7]
[8]
[9]
[10]
[11]
[12]
[13]
[14]
[15]
[16]
[17]
[18]
[19]
[20]
[21]
[22]
[23]
[24]
[25]
[26]
[27]
[28]
[29]
[30]
[31]
[32]
[33]
[34]
[35]
[36]
[37]
[38]
[39]
[40]
[41]
[42]
[43]
[44]
[45]
[46]
[47]
[48]
[49]
[50]
[51]
[52]
[53]
[54]
[55]
[56]
[57]
[58]
[59]
[60]
[61]
[62]
[63]
[64]
[65]
[{"$f":"ROW()-34","v":66}]
[67]
[68]
[69]
[70]
[71]
[72]
[73]
[74]
[75]
[76]
[77]
[78]
[79]
[80]
[81]
[82]
[83]
[84]
[85]
[86]
[87]
[88]
[89]
[90]
[91]
[92]
[93]
[94]
[95]
[96]
[97]
[98]
[99]
[100]

{"sheet":"企総（修正・内変・訂正・取消）","index":1,"n_rows":134,"n_cols":200,"rows_kept":134,"cut":false,"hidden":false,"merged":[[0,26,0,27],[20,0,20,15],[0,24,0,25],[0,10,0,11],[0,0,0,1],[0,2,0,3],[0,4,0,5],[0,6,0,7],[0,8,0,9],[0,22,0,23],[0,20,0,21],[0,18,0,19],[0,12,0,13],[0,14,0,15],[0,16,0,17]]}
["本支店",null,"処理種別",null,"有無",null,"決済種別",null,"起算方式",null,"ユーザンス月日指定",null,"変更事由",null,"受渡条件",null,"徴収区分",null,"契約形態",null,"船積後付保率（非常）",null,"修正削除フラグ",null,"船積前てん補種別",null,"船積後てん補種別"]
[10,"10 本店",2,"2 変更",1,"1 有り",1,"1 キャッシュ",1,"1 E/S起算",1,"1 月指定","02","02 減額変更",1,"1 FOB",1,"1 一括",11,"11 輸出"," 975",0.97499999999999998,1,"1 削除",2,"2 総合",2,"2 総合"]
[15,"15 支店",3,"3 訂正"," ","無し",2,"2  準キャッシュ",2,"2 L/S起算",2,"2 日指定","03","03 通貨の変更",2,"2 C&F",2,"2 分割",15,"15 仲介","1000",1,2,"2 修正",1,"1 非常のみ",1,"1 非常のみ"]
[null,null,4,"4 修正",null,null,3,"3 延払",3,"3 特定日起算",null,null,"04","04 貨物の変更",3,"3 CIF",null,null,null,null,null,null,3,"3 追加",4,"4 信用のみ",4,"4 信用のみ"]
[null,null,5,"5 削除",null,null,null,null,null,null,null,null,"05","05 契約形態の変更",4,"4 FAS"]
[null,null,null,null,null,null,null,null,null,null,null,null,"06","06 船積予定時期の変更(追加保険料を要するもの)",5,"5 EXW"]
[null,null,null,null,null,null,null,null,null,null,null,null,"10","10 支払国（ILC発行・確認国)の変更",6,"6 FOB Airport"]
[null,null,null,null,null,null,null,null,null,null,null,null,"11","11 売相手国の変更",7,"7 FRC"]
[null,null,null,null,null,null,null,null,null,null,null,null,"12","12 仕向国の変更",9,"9 その他"]
[null,null,null,null,null,null,null,null,null,null,null,null,"13","13 同一国支払人(ILC発行・確認者)の変更"]
[null,null,null,null,null,null,null,null,null,null,null,null,"14","14 同一国相手方の変更"]
[null,null,null,null,null,null,null,null,null,null,null,null,"15","15 決済条件の変更（延長）"]
[null,null,null,null,null,null,null,null,null,null,null,null,"16","16 決済条件の変更（短縮）"]
[null,null,null,null,null,null,null,null,null,null,null,null,"17","17 決済条件の変更（その他）"]
[null,null,null,null,null,null,null,null,null,null,null,null,"99","99 その他の変更"]
[]
[]
[]
[]
["企業総合保険（証券型・一般案件）"]
["変更/訂正内変/修正の場合、必須項目以外は対象となる項目を入力してください。\n取消の場合は、処理種別、証券番号、申込者のみ入力してください。\n枝分割を伴う内容変更の場合、元枝番を入力してください。\n船積情報に変更（F/S予定日、L/S予定日、船積前保険対象額、船積後保険対象額のいずれかを変更・修正する場合）のある場合、船積番号（※）及び船積修正削除フラグを入力してください。\n決済情報に変更のある場合（決済方法、決済支払保証、ユーザンス月日指定、ユーザンス期間、決済予定日、決済元本、決済金利のいずれかを変更・修正する場合）は、船積番号（※）及び決済修正削除フラグを入力してください。\n複数ある決済情報に変更のある場合、決済番号（1～5）は保険証券に記載された番号のとおり入力してください。\n（※）船積番号に入力がない場合、01が自動入力されます。",null,null,null,null,null,null,null,null,null,null,null,null,null,null,null,null,null,null,null,null,null,null,null,null,null,null,null,null,null,null,null,null,null,null,null,null,null,null,null,null,null,null,null,null,null,null,null,null,null,null,null,null,null,null,null,null,null,null,null,null,null,null,null,null,null,null,null,null,null,null,null,null,null,null,null,null,null,null,null,null,null,null,null,null,null,null,null,null,null,null,null,null,null,null,null,null,null,null,null,null,null,null,null,null,null,null,null,null,null,null,null,null,null,null,null,null,null,null,null,null,null,null,null,null,null,null,null,null,null,null,null,null,null,null,null,null,null,null,null,null,null,null,null,null,null,null,null,null,null,null,null,null,null,null,null,null,null,null,null,null,null,null,null,null,null,null,null,"※このボタンはNEXIで使用しますので押下しないで下さい。"]
["タイトル","シートID","処理種別","証券番号－\n本支店","証券番号－\n特約コード","証券番号－\n年度","証券番号－\n一連番号","枝番","履歴番号","申込者","被保険者","被保険者部門","保険金受取人","内変申請書\n提出日","契約形態","輸出契約等\n締結日","輸出契約等\n変更日","輸出契約等\r\n発効日","発効条件\nの\r有無","変更事由コード","元枝番","変更事項\n（新）","変更事項（旧）","変更理由","輸出契約等\n番号","輸出契約等元本","リファレンス番号","船積前\r\nてん補種別","船積後\r\nてん補種別","徴収区分","分割徴収予定日","確認管理番号－\n年度","確認管理番号－\n一連番号","内諾番号－\n年度","内諾番号－\n一連番号","事前承認番号","特殊契約\r－\nエスカレーションクローズ","特殊契約\r－\n円約款","特殊契約－\r\nキャッシュオプション","特殊契約\r－\n完成納期","特約商品－\r\nフルターン有無","特約商品－\r\nフルターン保険期間","特約商品\r－\n共同契約\rてん補範囲","特約商品－\r\nライセンス有無","特約商品－\r\nライセンス支払限度額","特約商品\r\n－支出費用\r有無","特約商品－\r\n支出費用保険期間","特約商品－\r\n支出費用保険対象額","特約商品\r\n－外貨建","他の保険契約","通貨","為替換算率","貨物","受渡条件","仕向国","支払国","支払人","支払人氏名","支払人住所","保証国","保証人","保証人氏名","保証人住所","買契約相手国","船積国","売契約相手国","売契約相手方","売契約相手方氏名","売契約相手方住所","船積No","船積修正削除フラグ","Ｆ／Ｓ\n予定日","Ｌ／Ｓ\n予定日","船積前\n保険対象額","船積後\n保険対象額","船積後付保率（非常）","決済修正\n削除フラグ１","決済予定日１","決済方法１","決済起算方式１","決済元本１","ユーザンス\n月日指定１","ユーザンス\n期間１","決済支払保証１","決済金利１","決済修正\n削除フラグ２","決済予定日２","決済方法２","決済起算方式２","決済元本２","ユーザンス\n月日指定２","ユーザンス\n期間２","決済支払保証２","決済金利２","決済修正\n削除フラグ３","決済予定日３","決済方法３","決済起算方式３","決済元本３","ユーザンス\n月日指定３","ユーザンス\n期間３","決済支払保証３","決済金利３","決済修正\n削除フラグ４","決済予定日４","決済方法４","決済起算方式４","決済元本４","ユーザンス\n月日指定４","ユーザンス\n期間４","決済支払保証４","決済金利４","決済修正\n削除フラグ５","決済予定日５","決済方法５","決済起算方式５","決済元本５","ユーザンス\n月日指定５","ユーザンス\n期間５","決済支払保証５","決済金利５","決済修正\n削除フラグ６","決済予定日６","決済方法６","決済起算方式６","決済元本６","ユーザンス\n月日指定６","ユーザンス\n期間６","決済支払保証６","決済金利６","決済修正\n削除フラグ７","決済予定日７","決済方法７","決済起算方式７","決済元本７","ユーザンス\n月日指定７","ユーザンス\n期間７","決済支払保証７","決済金利７","決済修正\n削除フラグ８","決済予定日８","決済方法８","決済起算方式８","決済元本８","ユーザンス\n月日指定８","ユーザンス\n期間８","決済支払保証８","決済金利８","決済修正\n削除フラグ９","決済予定日９","決済方法９","決済起算方式９","決済元本９","ユーザンス\n月日指定９","ユーザンス\n期間９","決済支払保証９","決済金利９","決済修正\n削除フラグ１０","決済予定日１０","決済方法１０","決済起算方式１０","決済元本１０","ユーザンス\n月日指定１０","ユーザンス\n期間１０","決済支払保証１０","決済金利１０","その他","受理本支店","受理日","受理番号","決済種別１","決済種別２","決済種別３","決済種別４","決済種別５","個別・包括区分","増加費用\r\nてん補種別","支払区分","船主国","特約商品\r\n－予備欄","技術等提供\r\n開始日","国内販売\r\n締結日","貨物引渡日","ｴﾋﾞﾃﾞﾝｽの有無","船積前付保率（非常）","船積前付保率（信用）","船積後付保率（非常）","船積後付保率（信用）","増加費用保険対象額","増加費用\r\n付保率","予備1","決済予備１","決済予備２","決済予備３","決済予備４","決済予備５","予備2","連絡先担当部課名","連絡先担当者名","連絡先TEL"]
["出力桁数",4,1,2,9,2,6,2,2,9,9,6,9,6,2,6,6,6,"1",2,2,null,null,null,25,15,15,1,1,1,6,2,6,4,8,null,1,1,1,1,1,3,1,1,15,1,3,15,1,1,3,10,6,1,3,3,7,null,null,3,7,null,null,3,3,3,7,null,null,2,1,6,6,15,15,"4",1,6,2,1,15,1,3,2,15,1,6,2,1,15,1,3,2,15,1,6,2,1,15,1,3,2,15,1,6,2,1,15,1,3,2,15,1,6,2,1,15,1,3,2,15,1,6,2,1,15,1,3,2,15,1,6,2,1,15,1,3,2,15,1,6,2,1,15,1,3,2,15,1,6,2,1,15,1,3,2,15,1,6,2,1,15,1,3,2,15,null,2,6,5,1,1,1,1,1,1,1,1,3,3,6,6,6,1,3,3,3,3,15,3,29,4,4,4,4,4,318]
["ソートNo.",1,2,3,4,5,6,7,8,33,34,35,36,37,9,40,41,42,54,38,39,null,null,null,46,48,47,11,12,15,null,17,17.100000000000001,16,16.2,null,19,20,21,22,23,24,25,27,28,29,30,31,26,18,49,50,51,52,55,56,57,null,null,58,59,null,null,60,64,61,62,null,null,72,73,74,75,76,77,71,78,80,81,82,87,83,84,86,88,89,91,92,93,98,94,95,97,99,100,102,103,104,109,105,106,108,110,111,113,114,115,120,116,117,119,121,122,124,125,126,131,127,128,130,132,null,null,null,null,null,null,null,null,null,null,null,null,null,null,null,null,null,null,null,null,null,null,null,null,null,null,null,null,null,null,null,null,null,null,null,null,null,null,null,null,null,null,null,null,null,null,133,134,135,79,90,101,112,123,10,13,14,63,32,43,44,45,53,65,66,67,68,69,70,71.2,85,96,107,118,129,136]
["連動種別",null,null,null,null,null,null,null,null,null,null,null,null,null,null,null,null,null,null,null,null,null,null,null,null,null,null,null,null,null,null,null,null,null,null,null,null,null,null,null,null,null,null,null,null,null,null,null,null,null,null,null,null,null,null,null,null,null,null,null,null,null,null,null,null,null,null,null,null,null,null,null,null,null,null,null,null,null,null,null,null,null,null,null,null,null,null,null,null,null,null,null,null,null,null,null,null,null,null,null,null,null,null,null,null,null,null,null,null,null,null,null,null,null,null,null,null,null,null,null,null,null,null,null,null,null,null,null,null,null,null,null,null,null,null,null,null,null,null,null,null,null,null,null,null,null,null,null,null,null,null,null,null,null,null,null,null,null,null,null,null,null,null,null,null,null,null,null,null,null,"決済方法１","決済方法２","決済方法３","決済方法４","決済方法５"]
["属性","CHAR","CHAR","CHAR","CHAR","CHAR","CHAR","CHAR","CHAR","CHAR","CHAR","CHAR","CHAR","CHAR","CHAR","CHAR","CHAR","CHAR","CHAR","CHAR","CHAR",null,null,null,"CHAR","NUM","CHAR","CHAR","CHAR","CHAR","CHAR","CHAR","CHAR","CHAR","CHAR",null,"CHAR","CHAR","CHAR","CHAR","CHAR","NUM","CHAR","CHAR","NUM","CHAR","NUM","NUM","CHAR","CHAR","CHAR","NUM","CHAR","CHAR","CHAR","CHAR","CHAR",null,null,"CHAR","CHAR",null,null,"CHAR","CHAR","CHAR","CHAR",null,null,"CHAR","CHAR","CHAR","CHAR","NUM","NUM","NUM","CHAR","CHAR","CHAR","CHAR","NUM","CHAR","NUM","CHAR","NUM","CHAR","CHAR","CHAR","CHAR","NUM","CHAR","NUM","CHAR","NUM","CHAR","CHAR","CHAR","CHAR","NUM","CHAR","NUM","CHAR","NUM","CHAR","CHAR","CHAR","CHAR","NUM","CHAR","NUM","CHAR","NUM","CHAR","CHAR","CHAR","CHAR","NUM","CHAR","NUM","CHAR","NUM","CHAR","CHAR","CHAR","CHAR","NUM","CHAR","NUM","CHAR","NUM","CHAR","CHAR","CHAR","CHAR","NUM","CHAR","NUM","CHAR","NUM","CHAR","CHAR","CHAR","CHAR","NUM","CHAR","NUM","CHAR","NUM","CHAR","CHAR","CHAR","CHAR","NUM","CHAR","NUM","CHAR","NUM","CHAR","CHAR","CHAR","CHAR","NUM","CHAR","NUM","CHAR","NUM",null,"CHAR","CHAR","CHAR","CHAR","CHAR","CHAR","CHAR","CHAR","CHAR","CHAR","CHAR","CHAR","CHAR","CHAR","CHAR","CHAR","CHAR","NUM","NUM","NUM","NUM","NUM","NUM","CHAR","CHAR","CHAR","CHAR","CHAR","CHAR","CHAR"]
["入力桁数",4,1,null,9,2,6,2,2,9,9,6,9,6,null,6,6,6,null,2,2,null,null,null,25,15,15,1,1,null,null,2,6,2,6,null,null,null,null,null,null,3,null,null,15,null,3,15,null,null,"3",10,6,null,3,3,7,null,null,3,7,null,null,3,3,3,7,null,null,2,1,6,6,15,15,null,1,6,2,1,15,1,3,2,15,1,6,2,1,15,1,3,15,15,2,6,2,1,15,1,3,2,15,1,6,2,1,15,1,3,15,15,1,6,2,1,15,1,3,2,15,1,6,2,1,15,1,3,2,15,1,6,2,1,15,1,3,2,15,1,6,2,1,15,1,3,2,15,1,6,2,1,15,1,3,2,15,1,6,2,1,15,1,3,2,15,null,2,6,5,1,1,1,1,1,1,1,1,3,3,6,6,6,1,3,3,3,3,15,3,29,4,4,4,4,4,318]
["小数部桁数",null,null,null,null,null,null,null,null,null,null,null,null,null,null,null,null,null,null,null,null,null,null,null,null,2,null,null,null,null,null,null,null,null,null,null,null,null,null,null,null,null,null,null,"2",null,null,2,null,null,null,"6",null,null,null,null,null,null,null,null,null,null,null,null,null,null,null,null,null,null,null,null,null,2,2,null,null,null,null,null,"2",null,null,null,"2",null,null,null,null,"2",null,null,2,"2",null,null,null,null,"2",null,null,null,"2",null,null,null,null,"2",null,null,2,"2",null,null,null,null,"2",null,null,null,"2",null,null,null,null,"2",null,null,null,"2",null,null,null,null,"2",null,null,null,"2",null,null,null,null,"2",null,null,null,"2",null,null,null,null,"2",null,null,null,"2",null,null,null,null,"2",null,null,null,"2"]
["コード一覧",null,"処理種別","本支店",null,null,null,null,null,null,null,null,null,null,"契約形態",null,null,null,"有無","変更事由",null,null,null,null,null,null,null,"船積前てん補種別","船積後てん補種別","徴収区分",null,null,null,null,null,null,"有無","有無","有無","有無","有無",null,"有無","有無",null,"有無",null,null,"有無","有無","通貨",null,null,"受渡条件","国名","国名",null,null,null,"国名",null,null,null,"国名","国名","国名",null,null,null,null,"修正削除フラグ",null,null,null,null,"船積後付保率（非常）","修正削除フラグ",null,"決済方法","起算方式",null,"ユーザンス月日指定",null,"支払保証",null,"修正削除フラグ",null,"決済方法","起算方式",null,"ユーザンス月日指定",null,"支払保証",null,"修正削除フラグ",null,"決済方法","起算方式",null,"ユーザンス月日指定",null,"支払保証",null,"修正削除フラグ",null,"決済方法","起算方式",null,"ユーザンス月日指定",null,"支払保証",null,"修正削除フラグ",null,"決済方法","起算方式",null,"ユーザンス月日指定",null,"支払保証",null,"修正削除フラグ",null,"決済方法","起算方式",null,"ユーザンス月日指定",null,"支払保証",null,"修正削除フラグ",null,"決済方法","起算方式",null,"ユーザンス月日指定",null,"支払保証",null,"修正削除フラグ",null,"決済方法","起算方式",null,"ユーザンス月日指定",null,"支払保証",null,"修正削除フラグ",null,"決済方法","起算方式",null,"ユーザンス月日指定",null,"支払保証",null,"修正削除フラグ",null,"決済方法","起算方式",null,"ユーザンス月日指定",null,"支払保証",null,null,null,null,null,null,null,null,null,null,null,"てん補種別",null,"国名"]
["固定値","2110",null,null,null,null,null,null,null,null,null,null,null,null,null,null,null,null,null,null,null,null,null,null,null,null,null,null,null,"1",null,null,null,null,null,null,null,null,null,null,null,null,null,null,null,null,null,null,null,null,null,null,null,null,null,null,null,null,null,null,null,null,null,null,null,null,null,null,null,"01",null,null,null,null,null,null,null,null,null,null,null,null,null,null,null,null,null,null,null,null,null,null,null,null,null,null,null,null,null,null,null,null,null,null,null,null,null,null,null,null,null,null,null,null,null,null,null,null,null,null,null,null,null,null,null,null,null,null,null,null,null,null,null,null,null,null,null,null,null,null,null,null,null,null,null,null,null,null,null,null,null,null,null,null,null,null,null,null,null,null,null,null,null,null,null,null,null,null,null,null,"1","1","1","1","1","4"," ","1",null,null,null,null,null,"1"]
["入力必須",null,"*","*","*","*","*",null,null,"*",null,null,null,"*","*","*","*",null,null,null,null,null,null,null,"*","*",null,null,null,null,null,null,null,null,null,null,null,null,null,null,null,null,null,null,null,null,null,null,null,null,"*",null,"*","*","*","*","*",null,null,null,null,null,null,null,null,null,null,null,null,null,null,null,"*","*",null,null,null,null,"*"]
["表示希望",null,"●","●","●","●","●","●",null,"●","●","●","●","●","●","●","●","●","●","●","●",null,null,null,"●","●","●",null,null,null,null,null,null,null,null,"●","●",null,null,"●",null,null,null,null,null,null,null,null,"●","●","●","●","●","●","●","●","●",null,null,"●","●",null,null,"●","●","●","●",null,null,"●","●","●","●","●","●",null,"●","●","●",null,"●","●","●","●","●","●","●","●",null,"●","●","●","●","●","●","●","●",null,"●","●","●","●","●","●","●","●",null,"●","●","●","●","●","●","●","●",null,"●","●","●","●","●",null,null,null,null,null,null,null,null,null,null,null,null,null,null,null,null,null,null,null,null,null,null,null,null,null,null,null,null,null,null,null,null,null,null,null,null,null,null,null,null,null,null,null,null,null,"●","●","●","●"]
["入力例","\"2110\"固定","2 変更","10 本店","123456789",17,123456,"00","00",123456789,123456789,123456,123456789,"170401","11 輸出","170401","170401","170401","1 有り","通貨の変更","12",null,null,null,"test","100000.00","test","総合:\"2\"固定","総合:\"2\"固定","1 一括",null,"17","123456","17","123456",null,"1 有り","1 有り","1 有り","1 有り","1 有り","123","1 有り","有り",null,"1 有り","123",null,"1 有り","1 有り","001 アメリカドル","1234.567890","123456","1 FOB","123 インド","123 インド","1234567",null,null,"123 インド","1234567",null,null,"123 インド","123 インド","123 インド","1234567",null,null,"01","1 削除","170401","170401","100000.00","100000.00","97.5%","2 修正","170401","12 L/C *** DAYS AFTER SIGH","1 E/S起算","100000.00","1 月指定",123,"10 円借款","100000.00","2 修正","170401","12 L/C *** DAYS AFTER SIGH","1 E/S起算","100000.00","1 月指定",123,"10 円借款","100000.00","2 修正","170401","12 L/C *** DAYS AFTER SIGH","1 E/S起算","100000.00","1 月指定",123,"10 円借款","100000.00","2 修正","170401","12 L/C *** DAYS AFTER SIGH","1 E/S起算","100000.00","1 月指定",123,"10 円借款","100000.00","2 修正","170401","12 L/C *** DAYS AFTER SIGH","1 E/S起算","100000.00","1 月指定",123,"10 円借款","100000.00","2 修正","170401","12 L/C *** DAYS AFTER SIGH","1 E/S起算","100000.00","1 月指定",123,"10 円借款","100000.00","2 修正","170401","12 L/C *** DAYS AFTER SIGH","1 E/S起算","100000.00","1 月指定",123,"10 円借款","100000.00","2 修正","170401","12 L/C *** DAYS AFTER SIGH","1 E/S起算","100000.00","1 月指定",123,"10 円借款","100000.00","2 修正","170401","12 L/C *** DAYS AFTER SIGH","1 E/S起算","100000.00","1 月指定",123,"10 円借款","100000.00","2 修正","170401","12 L/C *** DAYS AFTER SIGH","1 E/S起算","100000.00","1 月指定",123,"10 円借款","100000.00",null,"10","170401","12345","ｷｬｯｼｭ:\"1\"固定","ｷｬｯｼｭ:\"1\"固定","ｷｬｯｼｭ:\"1\"固定","ｷｬｯｼｭ:\"1\"固定","ｷｬｯｼｭ:\"1\"固定","企総:\"4\"固定",null,"2年未満:\"1\"固定",null,null,null,null,null,"1固定","80%固定","80%固定","97.5%固定","90%固定"]
["桁数","4桁","選択","選択","9桁","2桁","6桁","2桁","2桁","9桁","9桁","6桁","9桁","6桁","選択","6桁","6桁","6桁","選択","選択","2桁",null,null,null,"25桁","15桁","15桁",1,1,"選択",null,"2桁","6桁","2桁","6桁",null,"選択","選択","選択","選択","選択","3桁","選択","選択","15桁","選択","3桁","15桁","選択","選択","選択","10桁","6桁","選択","選択","選択","7桁",null,null,"選択","7桁",null,null,"選択","選択","選択","7桁",null,null,"2桁","選択","6桁","6桁","15桁","15桁","選択","選択","6","選択","選択","15桁","選択","3","選択","15桁","選択","6","選択","選択","15桁","選択","3","選択","15桁","選択","6","選択","選択","15桁","選択","3","選択","15桁","選択","6","選択","選択","15桁","選択","3","選択","15桁","選択","6","選択","選択","15桁","選択","3","選択","15桁","選択","6","選択","選択","15桁","選択","3","選択","15桁","選択","6","選択","選択","15桁","選択","3","選択","15桁","選択","6","選択","選択","15桁","選択","3","選択","15桁","選択","6","選択","選択","15桁","選択","3","選択","15桁","選択","6","選択","選択","15桁","選択","3","選択","15桁",null,"2桁","6桁","5桁",1,1,1,1,1,1,1,1,3,3,6,6,6,1,3,3,3,3,15,3,29,4,4,4,4,4,318]
[{"$f":"ROW()-34","v":1}]
[{"$f":"ROW()-34","v":2}]
[3]
[4]
[5]
[6]
[7]
[8]
[9]
[10]
[11]
[12]
[13]
[14]
[15]
[16]
[17]
[18]
[19]
[20]
[21]
[22]
[23]
[24]
[25]
[26]
[27]
[28]
[29]
[30]
[31]
[32]
[33]
[34]
[35]
[36]
[37]
[38]
[39]
[40]
[41]
[42]
[43]
[44]
[45]
[46]
[47]
[48]
[49]
[50]
[51]
[52]
[53]
[54]
[55]
[56]
[57]
[58]
[59]
[60]
[61]
[62]
[63]
[64]
[65]
[{"$f":"ROW()-34","v":66}]
[67]
[68]
[69,null,null,null,null,null,null,null,null,null,null,null,null,null,null,null,null,null,null,null,null,null,null,null,null,null,null,null,null,null,null,null,null,null,null,null,null,null,null,null,null,null,null,null,null,null,null,null,null,null,null,null,null,null,null,null,null,null,null,null,null,null,null,null,null,null,null,null,null,null,null,null,null,null,null,null,null,null,null,null,null,null,null,null,null,null,null,null,null,null,null,null,null,null,null,null,null,null,null,null,null,null,null,null,null,null,null,null,null,null,null,null,null,null,null,null,null,null,null,null,null,null,null,null,null,null,null,null,null,null,null,null,null,null,null,null,null,null,null,null,null,null,null,null,null,null,null,null,null,null,null,null,null,null,null,null,null,null,null,null,null,null,null,null,null,null,null,null,null,"44555"]
[70]
[71]
[72]
[73]
[74]
[75]
[76]
[77]
[78]
[79]
[80]
[81]
[82]
[83]
[84]
[85]
[86]
[87]
[88]
[89]
[90]
[91]
[92]
[93]
[94]
[95]
[96]
[97]
[98]
[99]
[100]

{"sheet":"企総（増額新規）","index":2,"n_rows":134,"n_cols":200,"rows_kept":134,"cut":false,"hidden":false,"merged":[[0,26,0,27],[0,24,0,25],[0,22,0,23],[0,0,0,1],[0,2,0,3],[0,4,0,5],[0,6,0,7],[0,8,0,9],[0,10,0,11],[0,12,0,13],[0,14,0,15],[0,16,0,17],[0,18,0,19],[0,20,0,21]]}
["本支店",null,"処理種別",null,"有無",null,"決済種別",null,"起算方式",null,"ユーザンス月日指定",null,"変更事由",null,"受渡条件",null,"徴収区分",null,"契約形態",null,"船積後付保率（非常）",null,"修正削除フラグ",null,"船積前てん補種別",null,"船積後てん補種別"]
[10,"10 本店",2,"2 変更",1,"1 有り",1,"1 キャッシュ",1,"1 E/S起算",1,"1 月指定","01","01 増額新規",1,"1 FOB",1,"1 一括",11,"11 輸出"," 975",0.97499999999999998,1,"1 削除",2,"2 総合",2,"2 総合"]
[15,"15 支店",3,"3 訂正",null,null,2,"2  準キャッシュ",2,"2 L/S起算",2,"2 日指定","02","02 減額変更",2,"2 C&F",2,"2 分割",15,"15 仲介","1000",1,2,"2 修正",1,"1 非常のみ",1,"1 非常のみ"]
[null,null,4,"4 修正",null,null,3,"3 延払",3,"3 特定日起算",null,null,"03","03 通貨の変更",3,"3 CIF",null,null,null,null,null,null,3,"3 追加",4,"4 信用のみ",4,"4 信用のみ"]
[null,null,5,"5 削除",null,null,null,null,null,null,null,null,"04","04 貨物の変更",4,"4 FAS"]
[null,null,null,null,null,null,null,null,null,null,null,null,"05","05 契約形態の変更",5,"5 EXW"]
[null,null,null,null,null,null,null,null,null,null,null,null,"06","06 船積予定時期の変更(追加保険料を要するもの)",6,"6 FOB Airport"]
[null,null,null,null,null,null,null,null,null,null,null,null,"10","10 支払国（ILC発行・確認国)の変更",7,"7 FRC"]
[null,null,null,null,null,null,null,null,null,null,null,null,"11","11 売相手国の変更",9,"9 その他"]
[null,null,null,null,null,null,null,null,null,null,null,null,"12","12 仕向国の変更"]
[null,null,null,null,null,null,null,null,null,null,null,null,"13","13 同一国支払人(ILC発行・確認者)の変更"]
[null,null,null,null,null,null,null,null,null,null,null,null,"14","14 同一国相手方の変更"]
[null,null,null,null,null,null,null,null,null,null,null,null,"15","15 決済条件の変更（延長）"]
[null,null,null,null,null,null,null,null,null,null,null,null,"16","16 決済条件の変更（短縮）"]
[null,null,null,null,null,null,null,null,null,null,null,null,"17","17 決済条件の変更（その他）"]
[null,null,null,null,null,null,null,null,null,null,null,null,"99","99 その他の変更"]
[]
[]
[]
["企業総合保険（証券型・一般案件）"]
["※新規申込時の入力必須項目を全て入力する必要があります。",null,null,null,null,null,null,null,null,null,null,null,null,null,null,null,null,null,null,null,null,null,null,null,null,null,null,null,null,null,null,null,null,null,null,null,null,null,null,null,null,null,null,null,null,null,null,null,null,null,null,null,null,null,null,null,null,null,null,null,null,null,null,null,null,null,null,null,null,null,null,null,null,null,null,null,null,null,null,null,null,null,null,null,null,null,null,null,null,null,null,null,null,null,null,null,null,null,null,null,null,null,null,null,null,null,null,null,null,null,null,null,null,null,null,null,null,null,null,null,null,null,null,null,null,null,null,null,null,null,null,null,null,null,null,null,null,null,null,null,null,null,null,null,null,null,null,null,null,null,null,null,null,null,null,null,null,null,null,null,null,null,null,null,null,null,null,null,"※このボタンはNEXIで使用しますので押下しないで下さい。"]
["タイトル","シートID","処理種別","証券番号－\n本支店","証券番号－\n特約コード","証券番号－\n年度","証券番号－\n一連番号","枝番","履歴番号","申込者","被保険者","被保険者部門","保険金受取人","内変申請書\n提出日","契約形態","輸出契約等\n締結日","輸出契約等\n変更日","輸出契約等\r\n発効日","発効条件の\r\n有無","変更事由コード","元枝番","変更事項\n（新）","変更事項（旧）","変更理由","輸出契約等\n番号","輸出契約等元本","リファレンス番号","船積前\r\nてん補種別","船積後\r\nてん補種別","徴収区分","分割徴収予定日","確認管理番号－\n年度","確認管理番号－\n一連番号","内諾番号－\n年度","内諾番号－\n一連番号","事前承認番号","特殊契約\r－\nエスカレーションクローズ","特殊契約\r－\n円約款","特殊契約－\r\nキャッシュオプション","特殊契約\r－\n完成納期","特約商品－\r\nフルターン有無","特約商品－\r\nフルターン保険期間","特約商品\r－\n共同契約\rてん補範囲","特約商品－\r\nライセンス有無","特約商品－\r\nライセンス支払限度額","特約商品\r\n－支出費用\r有無","特約商品－\r\n支出費用保険期間","特約商品－\r\n支出費用保険対象額","特約商品\r\n－外貨建","他の保険契約","通貨","為替換算率","貨物","受渡条件","仕向国","支払国","支払人","支払人氏名","支払人住所","保証国","保証人","保証人氏名","保証人住所","買契約相手国","船積国","売契約相手国","売契約相手方","売契約相手方氏名","売契約相手方住所","船積No","船積修正削除フラグ","Ｆ／Ｓ\n予定日","Ｌ／Ｓ\n予定日","船積前\n保険対象額","船積後\n保険対象額","船積後付保率（非常）","決済修正\n削除フラグ１","決済予定日１","決済方法１","決済起算方式１","決済元本１","ユーザンス\n月日指定１","ユーザンス\n期間１","決済支払保証１","決済金利１","決済修正\n削除フラグ２","決済予定日２","決済方法２","決済起算方式２","決済元本２","ユーザンス\n月日指定２","ユーザンス\n期間２","決済支払保証２","決済金利２","決済修正\n削除フラグ３","決済予定日３","決済方法３","決済起算方式３","決済元本３","ユーザンス\n月日指定３","ユーザンス\n期間３","決済支払保証３","決済金利３","決済修正\n削除フラグ４","決済予定日４","決済方法４","決済起算方式４","決済元本４","ユーザンス\n月日指定４","ユーザンス\n期間４","決済支払保証４","決済金利４","決済修正\n削除フラグ５","決済予定日５","決済方法５","決済起算方式５","決済元本５","ユーザンス\n月日指定５","ユーザンス\n期間５","決済支払保証５","決済金利５","決済修正\n削除フラグ６","決済予定日６","決済方法６","決済起算方式６","決済元本６","ユーザンス\n月日指定６","ユーザンス\n期間６","決済支払保証６","決済金利６","決済修正\n削除フラグ７","決済予定日７","決済方法７","決済起算方式７","決済元本７","ユーザンス\n月日指定７","ユーザンス\n期間７","決済支払保証７","決済金利７","決済修正\n削除フラグ８","決済予定日８","決済方法８","決済起算方式８","決済元本８","ユーザンス\n月日指定８","ユーザンス\n期間８","決済支払保証８","決済金利８","決済修正\n削除フラグ９","決済予定日９","決済方法９","決済起算方式９","決済元本９","ユーザンス\n月日指定９","ユーザンス\n期間９","決済支払保証９","決済金利９","決済修正\n削除フラグ１０","決済予定日１０","決済方法１０","決済起算方式１０","決済元本１０","ユーザンス\n月日指定１０","ユーザンス\n期間１０","決済支払保証１０","決済金利１０","その他","受理本支店","受理日","受理番号","決済種別１","決済種別２","決済種別３","決済種別４","決済種別５","個別・包括区分","増加費用\r\nてん補種別","支払区分","船主国","特約商品\r\n－予備欄","技術等提供\r\n開始日","国内販売\r\n締結日","貨物引渡日","ｴﾋﾞﾃﾞﾝｽの有無","船積前付保率（非常）","船積前付保率（信用）","船積後付保率（非常）","船積後付保率（信用）","増加費用保険対象額","増加費用\r\n付保率","予備1","決済予備１","決済予備２","決済予備３","決済予備４","決済予備５","予備2","連絡先担当部課名","連絡先担当者名","連絡先TEL"]
["出力桁数",4,1,2,9,2,6,2,2,9,9,6,9,6,2,6,6,6,"1",2,2,null,null,null,25,15,15,1,1,1,6,2,6,4,8,null,1,1,1,1,1,3,1,1,15,1,3,15,1,1,3,10,6,1,3,3,7,null,null,3,7,null,null,3,3,3,7,null,null,2,1,6,6,15,15,"4",1,6,2,1,15,1,3,2,15,1,6,2,1,15,1,3,2,15,1,6,2,1,15,1,3,2,15,1,6,2,1,15,1,3,2,15,1,6,2,1,15,1,3,2,15,1,6,2,1,15,1,3,2,15,1,6,2,1,15,1,3,2,15,1,6,2,1,15,1,3,2,15,1,6,2,1,15,1,3,2,15,1,6,2,1,15,1,3,2,15,null,2,6,5,1,1,1,1,1,1,1,1,3,3,6,6,6,1,3,3,3,3,15,3,29,4,4,4,4,4,318]
["ソートNo.",1,2,3,4,5,6,7,8,33,34,35,36,37,9,40,41,42,54,38,39,null,null,null,46,48,47,11,12,15,null,17,17.100000000000001,16,16.2,null,19,20,21,22,23,24,25,27,28,29,30,31,26,18,49,50,51,52,55,56,57,null,null,58,59,null,null,60,64,61,62,null,null,72,73,74,75,76,77,71,78,80,81,82,87,83,84,86,88,89,91,92,93,98,94,95,97,99,100,102,103,104,109,105,106,108,110,111,113,114,115,120,116,117,119,121,122,124,125,126,131,127,128,130,132,null,null,null,null,null,null,null,null,null,null,null,null,null,null,null,null,null,null,null,null,null,null,null,null,null,null,null,null,null,null,null,null,null,null,null,null,null,null,null,null,null,null,null,null,null,null,133,134,135,79,90,101,112,123,10,13,14,63,32,43,44,45,53,65,66,67,68,69,70,71.2,85,96,107,118,129,136]
["連動種別",null,null,null,null,null,null,null,null,null,null,null,null,null,null,null,null,null,null,null,null,null,null,null,null,null,null,null,null,null,null,null,null,null,null,null,null,null,null,null,null,null,null,null,null,null,null,null,null,null,null,null,null,null,null,null,null,null,null,null,null,null,null,null,null,null,null,null,null,null,null,null,null,null,null,null,"決済方法１",null,null,null,null,null,null,null,null,"決済方法２",null,null,null,null,null,null,null,null,"決済方法３",null,null,null,null,null,null,null,null,"決済方法４",null,null,null,null,null,null,null,null,"決済方法５",null,null,null,null,null,null,null,null,null,null,null,null,null,null,null,null,null,null,null,null,null,null,null,null,null,null,null,null,null,null,null,null,null,null,null,null,null,null,null,null,null,null,null,null,null,null,null,null,null,null,null,null,null,null,null,null,null,"決済方法１","決済方法２","決済方法３","決済方法４","決済方法５"]
["属性","CHAR","CHAR","CHAR","CHAR","CHAR","CHAR","CHAR","CHAR","CHAR","CHAR","CHAR","CHAR","CHAR","CHAR","CHAR","CHAR","CHAR","CHAR","CHAR","CHAR",null,null,null,"CHAR","NUM","CHAR","CHAR","CHAR","CHAR","CHAR","CHAR","CHAR","CHAR","CHAR",null,"CHAR","CHAR","CHAR","CHAR","CHAR","NUM","CHAR","CHAR","NUM","CHAR","NUM","NUM","CHAR","CHAR","CHAR","NUM","CHAR","CHAR","CHAR","CHAR","CHAR",null,null,"CHAR","CHAR",null,null,"CHAR","CHAR","CHAR","CHAR",null,null,"CHAR","CHAR","CHAR","CHAR","NUM","NUM","NUM","CHAR","CHAR","CHAR","CHAR","NUM","CHAR","NUM","CHAR","NUM","CHAR","CHAR","CHAR","CHAR","NUM","CHAR","NUM","CHAR","NUM","CHAR","CHAR","CHAR","CHAR","NUM","CHAR","NUM","CHAR","NUM","CHAR","CHAR","CHAR","CHAR","NUM","NUM","NUM","CHAR","NUM","CHAR","CHAR","CHAR","CHAR","NUM","CHAR","NUM","CHAR","NUM","CHAR","CHAR","CHAR","CHAR","NUM","CHAR","CHAR","CHAR","NUM","CHAR","CHAR","CHAR","CHAR","NUM","CHAR","CHAR","CHAR","NUM","CHAR","CHAR","CHAR","CHAR","NUM","CHAR","CHAR","CHAR","NUM","CHAR","CHAR","CHAR","CHAR","NUM","CHAR","CHAR","CHAR","NUM","CHAR","CHAR","CHAR","CHAR","NUM","CHAR","CHAR","CHAR","NUM",null,"CHAR","CHAR","CHAR","CHAR","CHAR","CHAR","CHAR","CHAR","CHAR","CHAR","CHAR","CHAR","CHAR","CHAR","CHAR","CHAR","CHAR","NUM","NUM","NUM","NUM","NUM","NUM","CHAR","CHAR","CHAR","CHAR","CHAR","CHAR","CHAR"]
["入力桁数",4,1,null,9,2,6,2,2,9,9,6,9,6,null,6,6,6,null,2,2,null,null,null,25,15,15,1,1,null,null,2,6,2,6,null,null,null,null,null,null,3,null,null,15,null,3,15,null,null,"3",10,6,null,3,3,7,null,null,3,7,null,null,3,3,3,7,null,null,2,1,6,6,15,15,null,1,6,2,1,15,1,3,2,15,1,6,2,1,15,1,3,15,15,2,6,2,1,15,1,3,2,15,1,6,2,1,15,1,3,15,15,1,6,2,1,15,1,3,2,15,1,6,2,1,15,1,3,2,15,1,6,2,1,15,1,3,2,15,1,6,2,1,15,1,3,2,15,1,6,2,1,15,1,3,2,15,1,6,2,1,15,1,3,2,15,null,2,6,5,1,1,1,1,1,1,1,1,3,3,6,6,6,1,3,3,3,3,15,3,29,4,4,4,4,4,318]
["小数部桁数",null,null,null,null,null,null,null,null,null,null,null,null,null,null,null,null,null,null,null,null,null,null,null,null,2,null,null,null,null,null,null,null,null,null,null,null,null,null,null,null,null,null,null,"2",null,null,2,null,null,null,"6",null,null,null,null,null,null,null,null,null,null,null,null,null,null,null,null,null,null,null,null,null,2,2,null,null,null,null,null,"2",null,null,null,"2",null,null,null,null,"2",null,null,2,"2",null,null,null,null,"2",null,null,null,"2",null,null,null,null,"2",null,null,2,"2",null,null,null,null,"2",null,null,null,"2",null,null,null,null,"2",null,null,null,"2",null,null,null,null,"2",null,null,null,"2",null,null,null,null,"2",null,null,null,"2",null,null,null,null,"2",null,null,null,"2",null,null,null,null,"2",null,null,null,"2"]
["コード一覧",null,"処理種別","本支店",null,null,null,null,null,null,null,null,null,null,"契約形態",null,null,null,"有無","変更事由",null,null,null,null,null,null,null,"船積前てん補種別","船積後てん補種別","徴収区分",null,null,null,null,null,null,"有無","有無","有無","有無","有無",null,"有無","有無",null,"有無",null,null,"有無","有無","通貨",null,null,"受渡条件","国名","国名",null,null,null,"国名",null,null,null,"国名","国名","国名",null,null,null,null,"修正削除フラグ",null,null,null,null,"船積後付保率（非常）","修正削除フラグ",null,"決済方法","起算方式",null,"ユーザンス月日指定",null,"支払保証",null,"修正削除フラグ",null,"決済方法","起算方式",null,"ユーザンス月日指定",null,"支払保証",null,"修正削除フラグ",null,"決済方法","起算方式",null,"ユーザンス月日指定",null,"支払保証",null,"修正削除フラグ",null,"決済方法","起算方式",null,"ユーザンス月日指定",null,"支払保証",null,"修正削除フラグ",null,"決済方法","起算方式",null,"ユーザンス月日指定",null,"支払保証",null,"修正削除フラグ",null,"決済方法","起算方式",null,"ユーザンス月日指定",null,"支払保証",null,"修正削除フラグ",null,"決済方法","起算方式",null,"ユーザンス月日指定",null,"支払保証",null,"修正削除フラグ",null,"決済方法","起算方式",null,"ユーザンス月日指定",null,"支払保証",null,"修正削除フラグ",null,"決済方法","起算方式",null,"ユーザンス月日指定",null,"支払保証",null,"修正削除フラグ",null,"決済方法","起算方式",null,"ユーザンス月日指定",null,"支払保証",null,null,null,null,null,null,null,null,null,null,null,"てん補種別",null,"国名"]
["固定値","2110","2",null,null,null,null,null,null,null,null,null,null,null,null,null,null,null,null,"01",null,null,null,null,null,null,null,null,null,"1",null,null,null,null,null,null,null,null,null,null,null,null,null,null,null,null,null,null,null,null,null,null,null,null,null,null,null,null,null,null,null,null,null,null,null,null,null,null,null,"01","3",null,null,null,null,null,"3",null,null,null,null,null,null,null,null,"3",null,null,null,null,null,null,null,null,"3",null,null,null,null,null,null,null,null,"3",null,null,null,null,null,null,null,null,"3",null,null,null,null,null,null,null,null,null,null,null,null,null,null,null,null,null,null,null,null,null,null,null,null,null,null,null,null,null,null,null,null,null,null,null,null,null,null,null,null,null,null,null,null,null,null,null,null,null,null,null,null,null,null,null,null,null,"1","1","1","1","1","4"," ","1",null,null,null,null,null,"1"]
["入力必須",null,"*","*","*","*","*","*",null,"*",null,null,null,"*","*","*","*",null,null,null,null,null,null,null,"*","*",null,null,null,null,null,null,null,null,null,null,null,null,null,null,null,null,null,null,null,null,null,null,null,null,"*",null,"*","*","*","*","*",null,null,null,null,null,null,null,null,null,null,null,null,null,null,null,"*","*",null,null,null,null,"*"]
["表示希望",null,null,"●","●","●","●","●",null,"●","●","●","●","●","●","●","●","●","●",null,null,null,null,null,"●","●","●","●","●",null,null,null,null,null,null,"●","●",null,null,"●",null,null,null,null,null,null,null,null,"●","●","●","●","●","●","●","●","●",null,null,"●","●",null,null,"●","●","●","●",null,null,null,null,"●","●","●","●",null,null,"●","●",null,"●","●","●","●","●",null,"●","●",null,"●","●","●","●","●",null,"●","●",null,"●","●","●","●","●",null,"●","●",null,"●","●","●","●","●",null,"●","●",null,"●","●","●","●","●",null,null,null,null,null,null,null,null,null,null,null,null,null,null,null,null,null,null,null,null,null,null,null,null,null,null,null,null,null,null,null,null,null,null,null,null,null,null,null,null,null,null,null,null,null,"●","●","●","●"]
["入力例","\"2110\"固定","2 変更","10 本店","123456789",17,123456,"00","00",123456789,123456789,123456,123456789,"170401","11 輸出","170401","170401","170401","1 有り","01 増額新規","12",null,null,null,"test","100000.00","test","2 総合","2 総合","1 一括",null,"17","123456","17","123456",null,"1 有り","1 有り","1 有り","1 有り","1 有り","123","1 有り","有り",null,"1 有り","123",null,"1 有り","1 有り","001 アメリカドル","1234.567890","123456","1 FOB","123 インド","123 インド","1234567",null,null,"123 インド","1234567",null,null,"123 インド","123 インド","123 インド","1234567",null,null,"01","1 削除","170401","170401","100000.00","100000.00","97.5%","2 修正","170401","12 L/C *** DAYS AFTER SIGH","1 E/S起算","100000.00","1 月指定",123,"10 円借款","100000.00","2 修正","170401","12 L/C *** DAYS AFTER SIGH","1 E/S起算","100000.00","1 月指定",123,"10 円借款","100000.00","2 修正","170401","12 L/C *** DAYS AFTER SIGH","1 E/S起算","100000.00","1 月指定",123,"10 円借款","100000.00","2 修正","170401","12 L/C *** DAYS AFTER SIGH","1 E/S起算","100000.00","1 月指定",123,"10 円借款","100000.00","2 修正","170401","12 L/C *** DAYS AFTER SIGH","1 E/S起算","100000.00","1 月指定",123,"10 円借款","100000.00","2 修正","170401","12 L/C *** DAYS AFTER SIGH","1 E/S起算","100000.00","1 月指定",123,"10 円借款","100000.00","2 修正","170401","12 L/C *** DAYS AFTER SIGH","1 E/S起算","100000.00","1 月指定",123,"10 円借款","100000.00","2 修正","170401","12 L/C *** DAYS AFTER SIGH","1 E/S起算","100000.00","1 月指定",123,"10 円借款","100000.00","2 修正","170401","12 L/C *** DAYS AFTER SIGH","1 E/S起算","100000.00","1 月指定",123,"10 円借款","100000.00","2 修正","170401","12 L/C *** DAYS AFTER SIGH","1 E/S起算","100000.00","1 月指定",123,"10 円借款","100000.00",null,"10","170401","12345","ｷｬｯｼｭ:\"1\"固定","ｷｬｯｼｭ:\"1\"固定","ｷｬｯｼｭ:\"1\"固定","ｷｬｯｼｭ:\"1\"固定","ｷｬｯｼｭ:\"1\"固定",null,null,"2年未満:\"1\"固定",null,null,null,null,null,"1固定","80%固定","80%固定","97.5%固定","90%固定"]
["桁数","4桁","選択","選択","9桁","2桁","6桁","2桁","2桁","9桁","9桁","6桁","9桁","6桁","選択","6桁","6桁","6桁","選択","選択","2桁",null,null,null,"25桁","15桁","15桁","選択","選択","選択",null,"2桁","6桁","2桁","6桁",null,"選択","選択","選択","選択","選択","3桁","選択","選択","15桁","選択","3桁","15桁","選択","選択","選択","10桁","6桁","選択","選択","選択","7桁",null,null,"選択","7桁",null,null,"選択","選択","選択","7桁",null,null,"2桁","選択","6桁","6桁","15桁","15桁","選択","選択","6","選択","選択","15桁","選択","3","選択","15桁","選択","6","選択","選択","15桁","選択","3","選択","15桁","選択","6","選択","選択","15桁","選択","3","選択","15桁","選択","6","選択","選択","15桁","選択","3","選択","15桁","選択","6","選択","選択","15桁","選択","3","選択","15桁","選択","6","選択","選択","15桁","選択","3","選択","15桁","選択","6","選択","選択","15桁","選択","3","選択","15桁","選択","6","選択","選択","15桁","選択","3","選択","15桁","選択","6","選択","選択","15桁","選択","3","選択","15桁","選択","6","選択","選択","15桁","選択","3","選択","15桁",null,"2桁","6桁","5桁",1,1,1,1,1,1,1,1,3,3,6,6,6,1,3,3,3,3,15,3,29,4,4,4,4,4,318]
[{"$f":"ROW()-34","v":1}]
[{"$f":"ROW()-34","v":2}]
[3]
[4]
[5]
[6]
[7]
[8]
[9]
[10]
[11]
[12]
[13]
[14]
[15]
[16]
[17]
[18]
[19]
[20]
[21]
[22]
[23]
[24]
[25]
[26]
[27]
[28]
[29]
[30]
[31]
[32]
[33]
[34]
[35]
[36]
[37]
[38]
[39]
[40]
[41]
[42]
[43]
[44]
[45]
[46]
[47]
[48]
[49]
[50]
[51]
[52]
[53]
[54]
[55]
[56]
[57]
[58]
[59]
[60]
[61]
[62]
[63]
[64]
[65]
[{"$f":"ROW()-34","v":66}]
[67]
[68]
[69]
[70]
[71]
[72]
[73]
[74]
[75]
[76]
[77]
[78]
[79]
[80]
[81]
[82]
[83]
[84]
[85]
[86]
[87]
[88]
[89]
[90]
[91]
[92]
[93]
[94]
[95]
[96]
[97]
[98]
[99]
[100]

{"sheet":"コード一覧","index":3,"n_rows":295,"n_cols":21,"rows_kept":295,"cut":false,"hidden":false,"merged":[[1,18,1,19],[1,13,1,14],[1,15,1,16],[1,1,1,4],[1,6,1,7]]}
[]
[null,"通貨コード",null,null,null,null,"国コード",null,null,null,"コード","決済方法",null,"船積後（対価確認後）\n非常危険　保険料計算期間",null,"＜参考＞\n決済パターン",null,null,"支払保証"]
[null,"通貨コード","通貨","表示","表示",null,"国コード","国名","表示",null,null,null,null,"LS案件","MS案件","機器","役務",null,"コード","内容"]
[null,"001","アメリカドル",{"$f":"B4&\" \"&C4","v":"001 アメリカドル"},"USD",null,"103","大韓民国",{"$f":"G4&\" \"&H4","v":"103 大韓民国"},null,10,"L/C AT SIGHT  ",{"$f":"K4&\" \"&L4","v":"10 L/C AT SIGHT  "},"30日","30日","○","×",null,"90","ＩＬＣ",{"$f":"S4&\" \"&T4","v":"90 ＩＬＣ"}]
[null,"015","円",{"$f":"B5&\" \"&C5","v":"015 円"},"JPY",null,"104","北朝鮮",{"$f":"G5&\" \"&H5","v":"104 北朝鮮"},null,11,"L/C *** DAYS AFTER B/L DATE  ",{"$f":"K5&\" \"&L5","v":"11 L/C *** DAYS AFTER B/L DATE  "},"***日","***日","○","×",null,"04","特定政府機関",{"$f":"S5&\" \"&T5","v":"04 特定政府機関"}]
[null,"091","ユーロ","091 ユーロ","EUR",null,"105","中華人民共和国","105 中華人民共和国",null,12,"L/C *** DAYS AFTER SIGHT      ","12 L/C *** DAYS AFTER SIGHT      ","***日 + 30日","***日 + 30日","○","×",null,"10","円借款","10 円借款"]
[null,"002","イギリスポンド","002 イギリスポンド","GBP",null,"106","台湾","106 台湾",null,19,"L/C OTHER","19 L/C OTHER","LS～LP","MS～MP","○","×",null,"11","無償援助","11 無償援助"]
[null,"003","カナダドル","003 カナダドル","CAD",null,"107","モンゴル","107 モンゴル",null,20,"D/A *** DAYS AFTER B/L DATE    ","20 D/A *** DAYS AFTER B/L DATE    ","***日","***日","○","×",null,"20","ＩＢＲＤ(国際復興開発銀行)","20 ＩＢＲＤ(国際復興開発銀行)"]
[null,"004","スイスフラン","004 スイスフラン","CHF",null,"108","香港","108 香港",null,21,"D/A *** DAYS AFTER SIGHT  ","21 D/A *** DAYS AFTER SIGHT  ","***日 + 30日","***日 + 30日","○","×",null,"21","ＩＤＡ(国際開発協会)","21 ＩＤＡ(国際開発協会)"]
[null,"006","スウェーデンクローネ","006 スウェーデンクローネ","DEM",null,"110","ベトナム","110 ベトナム",null,29,"D/A OTHER  ","29 D/A OTHER  ","LS～LP","MS～MP","○","×",null,"22","ＩＦＣ(国際金融公社)","22 ＩＦＣ(国際金融公社)"]
[null,"011","デンマーククローネ","011 デンマーククローネ","SEK",null,"111","タイ","111 タイ",null,30,"D/P AT SIGHT     ","30 D/P AT SIGHT     ","30日","30日","○","×",null,"23","ＡＤＢ(アジア開発銀行)","23 ＡＤＢ(アジア開発銀行)"]
[null,"013","ノルウェークローネ","013 ノルウェークローネ","NLG",null,"112","シンガポール","112 シンガポール",null,31,"D/P *** DAYS AFTER B/L DATE   ","31 D/P *** DAYS AFTER B/L DATE   ","***日","***日","○","×",null,"24","ＪＢＩＣ(国際協力銀行)","24 ＪＢＩＣ(国際協力銀行)"]
[null,"016","オーストラリアドル","016 オーストラリアドル","BEF",null,"113","マレーシア","113 マレーシア",null,32,"D/P *** DAYS AFTER SIGHT   ","32 D/P *** DAYS AFTER SIGHT   ","***日 + 30日","***日 + 30日","○","×",null,"41","ＡＦＤＢ(アフリカ開発銀行)","41 ＡＦＤＢ(アフリカ開発銀行)"]
[null,"017","人民元","017 人民元","FRF",null,"116","ブルネイ","116 ブルネイ",null,39,"D/P OTHER","39 D/P OTHER","LS～LP","MS～MP","○","×",null,"42","ＡＦＤＦ(アフリカ開発基金)","42 ＡＦＤＦ(アフリカ開発基金)"]
[null,"018","ニュージランドドル","018 ニュージランドドル","ATS",null,"117","フィリピン","117 フィリピン",null,40,"REMITTANCE AT SIGHT  ","40 REMITTANCE AT SIGHT  ","30日","30日","○","×",null,"44","ＩＤＢ(米州開発銀行)","44 ＩＤＢ(米州開発銀行)"]
[null,"019","香港ドル","019 香港ドル","DKK",null,"118","インドネシア","118 インドネシア",null,41,"REMITTANCE *** DAYS AFTER B/L DATE  ","41 REMITTANCE *** DAYS AFTER B/L DATE  ","***日","***日","○","×",null,"45","CABEI","45 CABEI"]
[null,"020","シンガポールドル","020 シンガポールドル","ITL",null,"120","カンボジア","120 カンボジア",null,42,"REMITTANCE *** DAYS AFTER RECEIPT OF DOCUMENTS  ","42 REMITTANCE *** DAYS AFTER RECEIPT OF DOCUMENTS  ","***日 + 30日","***日 + 30日","○","×",null,"46","CAF","46 CAF"]
[null,"029","インドルピー","029 インドルピー","NOK",null,"121","ラオス","121 ラオス",null,49,"REMITTANCE OTHER  ","49 REMITTANCE OTHER  ","LS～LP","MS～MP","○","×",null,"47","ＣＤＢ(カリブ開発銀行)","47 ＣＤＢ(カリブ開発銀行)"]
[null,"030","インドネシアルピー","030 インドネシアルピー","PTE",null,"122","ミャンマー","122 ミャンマー",null,50,"AUTHORIZATION TO PAY AT SIGHT       ","50 AUTHORIZATION TO PAY AT SIGHT       ","30日","30日","○","×",null,"48","ＥＤＦ(欧州開発基金)","48 ＥＤＦ(欧州開発基金)"]
[null,"034","パキスタンルピー","034 パキスタンルピー","AUD",null,"123","インド","123 インド",null,59,"AUTHORIZATION TO PAY OTHER","59 AUTHORIZATION TO PAY OTHER","LS～LP","MS～MP","×","×",null,"49","ＥＩＢ(欧州投資銀行)"]
[null,"036","フィリピンペソ","036 フィリピンペソ","NZD",null,"124","パキスタン","124 パキスタン",null,60,"100% ADVANCE PAYMENT  ","60 100% ADVANCE PAYMENT  ","-","-","○","×",null,"74","ＩＦＡＤ(国際農業開発基金)"]
[null,"037","韓国ウォン","037 韓国ウォン","HKD",null,"125","スリランカ","125 スリランカ",null,64,"PROGRESS PAYMENT(EQUIPMENT) ","64 PROGRESS PAYMENT(EQUIPMENT) ","***日","***日","○","×",null,"75","ＥＢＲＤ(欧州復興開発銀行)"]
[null,"040","タイバーツ","040 タイバーツ",null,null,"126","モルディブ","126 モルディブ",null,65,"PROGRESS PAYMENT(SERVICE)    ","65 PROGRESS PAYMENT(SERVICE)    ","-","***日","×","○",null,"91","L/G"]
[null,"049","ロシアルーブル","049 ロシアルーブル",null,null,"127","バングラデシュ","127 バングラデシュ",null,70,"RETENTION(EQUIPMENT)   ","70 RETENTION(EQUIPMENT)   ","LS～MP","MS～MP","○","×",null,"92","本船担保"]
[null,"055","クウェートディナール","055 クウェートディナール",null,null,"128","東ティモール","128 東ティモール",null,71,"RETENTION(SERVICE)     ","71 RETENTION(SERVICE)     ","-","MS～MP","×","○",null,"99","その他の保証"]
[null,"057","カタールリヤル","057 カタールリヤル",null,null,"129","マカオ","129 マカオ",null,73,"MILESTONE(SCHEDULED)PAYMENT(MULTIPLE EQUIPMENT)\nCOVERD FOR DUE BEFORE L/S","73 MILESTONE(SCHEDULED)PAYMENT(MULTIPLE EQUIPMENT)\nCOVERD FOR DUE BEFORE L/S","LS～LP","MS～MP","○","×"]
[null,"058","サウジアラビアリヤル","058 サウジアラビアリヤル",null,null,"130","アフガニスタン","130 アフガニスタン",null,75,"MILESTONE(SCHEDULED)PAYMENT(ONE-TIME EQUIPMENT)\nCOVERD FOR DUE BEFORE L/S","75 MILESTONE(SCHEDULED)PAYMENT(ONE-TIME EQUIPMENT)\nCOVERD FOR DUE BEFORE L/S","LS～LP","MS～MP","○","×"]
[null,"061","UAEディルハム","061 UAEディルハム",null,null,"131","ネパール","131 ネパール",null,76,"MILESTONE PAYMENT(SERVICE) ","76 MILESTONE PAYMENT(SERVICE) ","-","***日","×","○"]
[null,"086","南アフリカランド","086 南アフリカランド",null,null,"132","ブータン","132 ブータン",null,77,"SCHEDULED PAYMENT (MULTIPLE SERVICE)  ","77 SCHEDULED PAYMENT (MULTIPLE SERVICE)  ","-","MS～MP","×","○"]
[null,"090","メキシコペソ","090 メキシコペソ",null,null,"133","イラン","133 イラン",null,78,"SCHEDULED PAYMENT (ONE-TIME SERVICE) ","78 SCHEDULED PAYMENT (ONE-TIME SERVICE) ","-","MS～MP","×","○"]
[null,"092","チェココルナ","092 チェココルナ",null,null,"134","イラク","134 イラク",null,80,"EQUAL PAYMENT OF PRINCIPAL OVER ONE YEAR",{"$f":"K31&\" \"&L31","v":"80 EQUAL PAYMENT OF PRINCIPAL OVER ONE YEAR"},"LS～LP","MS～MP","○","×"]
[null,"093","ハンガリーフォリント","093 ハンガリーフォリント",null,null,"135","バーレーン","135 バーレーン",null,81,"EQUAL PAYMENT OF PRINCIPAL OVER ONE YEAR（SHIPPING　BASIS）","81 EQUAL PAYMENT OF PRINCIPAL OVER ONE YEAR（SHIPPING　BASIS）","LS～LP","MS～MP","○","×"]
[null,"094","ポーランドズロチ","094 ポーランドズロチ",null,null,"136","（旧）イエメン","136 （旧）イエメン",null,88,"LOCAL PAYMENT (SERVICE)  ","88 LOCAL PAYMENT (SERVICE)  ","-","***日","×","○"]
[null,"097","トルコリラ","097 トルコリラ",null,null,"137","サウジアラビア","137 サウジアラビア",null,89,"LOCAL PAYMENT(EQUIPMENT)   ","89 LOCAL PAYMENT(EQUIPMENT)   ","***日","***日","○","×"]
[null,null,null," ",null,null,"138","クウェート","138 クウェート",null,98,"SETTLEMENT OTHER (SERVICE) ","98 SETTLEMENT OTHER (SERVICE) ","-","MS～MP","×","○"]
[null,null,null," ",null,null,"140","カタール","140 カタール",null,99,"SETTLEMENT OTHER (EQUIPMENT) ","99 SETTLEMENT OTHER (EQUIPMENT) ","LS～LP","MS～MP","○","×"]
[null,null,null," ",null,null,"141","オマーン","141 オマーン"]
[null,null,null,null,null,null,"143","イスラエル","143 イスラエル"]
[null,null,null,null,null,null,"144","ヨルダン","144 ヨルダン"]
[null,null,null,null,null,null,"145","シリア","145 シリア"]
[null,null,null,null,null,null,"146","レバノン","146 レバノン"]
[null,null,null,null,null,null,"147","アラブ首長国連邦","147 アラブ首長国連邦"]
[null,null,null,null,null,null,"148","ガザ・エリコ","148 ガザ・エリコ"]
[null,null,null,null,null,null,"149","イエメン","149 イエメン"]
[null,null,null,null,null,null,"150","アゼルバイジャン","150 アゼルバイジャン"]
[null,null,null,null,null,null,"151","アルメニア","151 アルメニア"]
[null,null,null,null,null,null,"152","ウズベキスタン","152 ウズベキスタン"]
[null,null,null,null,null,null,"153","カザフスタン","153 カザフスタン"]
[null,null,null,null,null,null,"154","キルギス","154 キルギス"]
[null,null,null,null,null,null,"155","タジキスタン","155 タジキスタン"]
[null,null,null,null,null,null,"156","トルクメニスタン","156 トルクメニスタン"]
[null,null,null,null,null,null,"157","ジョージア","157 ジョージア"]
[null,null,null,null,null,null,"158","西岸・ガザ（パレスチ","158 西岸・ガザ（パレスチ"]
[null,null,null,null,null,null,"192","日本","192 日本"]
[null,null,null,null,null,null,"193","サウジアラビア・クウ","193 サウジアラビア・クウ"]
[null,null,null,null,null,null,"199","キプロス（船舶）","199 キプロス（船舶）"]
[null,null,null,null,null,null,"201","アイスランド","201 アイスランド"]
[null,null,null,null,null,null,"202","ノルウェー","202 ノルウェー"]
[null,null,null,null,null,null,"203","スウェーデン","203 スウェーデン"]
[null,null,null,null,null,null,"204","デンマーク","204 デンマーク"]
[null,null,null,null,null,null,"205","英国","205 英国"]
[null,null,null,null,null,null,"206","アイルランド","206 アイルランド"]
[null,null,null,null,null,null,"207","オランダ","207 オランダ"]
[null,null,null,null,null,null,"208","ベルギー","208 ベルギー"]
[null,null,null,null,null,null,"209","ルクセンブルク","209 ルクセンブルク"]
[null,null,null,null,null,null,"210","フランス","210 フランス"]
[null,null,null,null,null,null,"211","モナコ","211 モナコ"]
[null,null,null,null,null,null,"212","アンドラ","212 アンドラ"]
[null,null,null,null,null,null,"213","ドイツ",{"$f":"G69&\" \"&H69","v":"213 ドイツ"}]
[null,null,null,null,null,null,"214","（旧）東ドイツ","214 （旧）東ドイツ"]
[null,null,null,null,null,null,"215","スイス","215 スイス"]
[null,null,null,null,null,null,"216","アゾレス諸島（葡）","216 アゾレス諸島（葡）"]
[null,null,null,null,null,null,"217","ポルトガル","217 ポルトガル"]
[null,null,null,null,null,null,"218","スペイン","218 スペイン"]
[null,null,null,null,null,null,"219","ジブラルタル","219 ジブラルタル"]
[null,null,null,null,null,null,"220","イタリア","220 イタリア"]
[null,null,null,null,null,null,"221","マルタ","221 マルタ"]
[null,null,null,null,null,null,"222","フィンランド","222 フィンランド"]
[null,null,null,null,null,null,"223","ポーランド","223 ポーランド"]
[null,null,null,null,null,null,"224","ロシア","224 ロシア"]
[null,null,null,null,null,null,"225","オーストリア","225 オーストリア"]
[null,null,null,null,null,null,"226","（旧）チェコスロヴァ","226 （旧）チェコスロヴァ"]
[null,null,null,null,null,null,"227","ハンガリー","227 ハンガリー"]
[null,null,null,null,null,null,"228","セルビア","228 セルビア"]
[null,null,null,null,null,null,"229","アルバニア","229 アルバニア"]
[null,null,null,null,null,null,"230","ギリシャ","230 ギリシャ"]
[null,null,null,null,null,null,"231","ルーマニア","231 ルーマニア"]
[null,null,null,null,null,null,"232","ブルガリア","232 ブルガリア"]
[null,null,null,null,null,null,"233","キプロス","233 キプロス"]
[null,null,null,null,null,null,"234","トルコ","234 トルコ"]
[null,null,null,null,null,null,"235","エストニア","235 エストニア"]
[null,null,null,null,null,null,"236","ラトビア","236 ラトビア"]
[null,null,null,null,null,null,"237","リトアニア","237 リトアニア"]
[null,null,null,null,null,null,"238","ウクライナ","238 ウクライナ"]
[null,null,null,null,null,null,"239","ベラルーシ","239 ベラルーシ"]
[null,null,null,null,null,null,"240","モルドバ","240 モルドバ"]
[null,null,null,null,null,null,"241","クロアチア","241 クロアチア"]
[null,null,null,null,null,null,"242","スロベニア","242 スロベニア"]
[null,null,null,null,null,null,"243","ボスニア・ヘルツェゴ","243 ボスニア・ヘルツェゴ"]
[null,null,null,null,null,null,"244","マケドニア","244 マケドニア"]
[null,null,null,null,null,null,"245","チェコ","245 チェコ"]
[null,null,null,null,null,null,"246","スロバキア","246 スロバキア"]
[null,null,null,null,null,null,"247","モンテネグロ","247 モンテネグロ"]
[null,null,null,null,null,null,"248","コソボ","248 コソボ"]
[null,null,null,null,null,null,"270","チャネル諸島（ジャー","270 チャネル諸島（ジャー"]
[null,null,null,null,null,null,"271","チャネル諸島（ガ管区","271 チャネル諸島（ガ管区"]
[null,null,null,null,null,null,"280","リヒテンシュタイン","280 リヒテンシュタイン"]
[null,null,null,null,null,null,"281","バチカン","281 バチカン"]
[null,null,null,null,null,null,"282","サンマリノ","282 サンマリノ"]
[null,null,null,null,null,null,"283","（旧）ソビエト連邦","283 （旧）ソビエト連邦"]
[null,null,null,null,null,null,"284","（旧）チェコ地域","284 （旧）チェコ地域"]
[null,null,null,null,null,null,"285","（旧）スロヴァキア地","285 （旧）スロヴァキア地"]
[null,null,null,null,null,null,"299","マルタ（船舶）","299 マルタ（船舶）"]
[null,null,null,null,null,null,"301","グリーンランド（デ）","301 グリーンランド（デ）"]
[null,null,null,null,null,null,"302","カナダ","302 カナダ"]
[null,null,null,null,null,null,"303","サンピエール島・ミク","303 サンピエール島・ミク"]
[null,null,null,null,null,null,"304","アメリカ合衆国","304 アメリカ合衆国"]
[null,null,null,null,null,null,"305","メキシコ","305 メキシコ"]
[null,null,null,null,null,null,"306","グアテマラ","306 グアテマラ"]
[null,null,null,null,null,null,"307","ホンジュラス","307 ホンジュラス"]
[null,null,null,null,null,null,"308","ベリーズ","308 ベリーズ"]
[null,null,null,null,null,null,"309","エルサルバドル","309 エルサルバドル"]
[null,null,null,null,null,null,"310","ニカラグア","310 ニカラグア"]
[null,null,null,null,null,null,"311","コスタリカ","311 コスタリカ"]
[null,null,null,null,null,null,"312","パナマ","312 パナマ"]
[null,null,null,null,null,null,"313","パナマ運河地帯","313 パナマ運河地帯"]
[null,null,null,null,null,null,"314","バミューダ島（英）","314 バミューダ島（英）"]
[null,null,null,null,null,null,"315","バハマ","315 バハマ"]
[null,null,null,null,null,null,"316","ジャマイカ","316 ジャマイカ"]
[null,null,null,null,null,null,"317","タークス・カイコス諸","317 タークス・カイコス諸"]
[null,null,null,null,null,null,"319","バルバドス","319 バルバドス"]
[null,null,null,null,null,null,"320","トリニダード・トバコ","320 トリニダード・トバコ"]
[null,null,null,null,null,null,"321","キューバ",{"$f":"G133&\" \"&H133","v":"321 キューバ"}]
[null,null,null,null,null,null,"322","ハイチ","322 ハイチ"]
[null,null,null,null,null,null,"323","ドミニカ共和国","323 ドミニカ共和国"]
[null,null,null,null,null,null,"324","プエルトリコ（米）","324 プエルトリコ（米）"]
[null,null,null,null,null,null,"325","米領バージン諸島","325 米領バージン諸島"]
[null,null,null,null,null,null,"326","蘭領アンティル","326 蘭領アンティル"]
[null,null,null,null,null,null,"327","仏領西インド諸島","327 仏領西インド諸島"]
[null,null,null,null,null,null,"328","ケイマン諸島（英）","328 ケイマン諸島（英）"]
[null,null,null,null,null,null,"329","グレナダ","329 グレナダ"]
[null,null,null,null,null,null,"330","セントルシア","330 セントルシア"]
[null,null,null,null,null,null,"331","アンティグア・バーブ","331 アンティグア・バーブ"]
[null,null,null,null,null,null,"332","英領バージン諸島","332 英領バージン諸島"]
[null,null,null,null,null,null,"333","ドミニカ","333 ドミニカ"]
[null,null,null,null,null,null,"334","モンセラット（英）","334 モンセラット（英）"]
[null,null,null,null,null,null,"335","セントクリストファー","335 セントクリストファー"]
[null,null,null,null,null,null,"336","セントビンセント・グ","336 セントビンセント・グ"]
[null,null,null,null,null,null,"337","アンギラ（英）","337 アンギラ（英）"]
[null,null,null,null,null,null,"380","アルバ（蘭）","380 アルバ（蘭）"]
[null,null,null,null,null,null,"381","キュラソー（蘭）","381 キュラソー（蘭）"]
[null,null,null,null,null,null,"382","サバ（蘭）","382 サバ（蘭）"]
[null,null,null,null,null,null,"383","セント・マーチン（蘭","383 セント・マーチン（蘭"]
[null,null,null,null,null,null,"384","セント・マーチン（仏","384 セント・マーチン（仏"]
[null,null,null,null,null,null,"385","ボナイル（蘭）","385 ボナイル（蘭）"]
[null,null,null,null,null,null,"386","セント・ユースタチウ","386 セント・ユースタチウ"]
[null,null,null,null,null,null,"395","バルバドス（船舶）","395 バルバドス（船舶）"]
[null,null,null,null,null,null,"396","ケイマン諸島（船舶）","396 ケイマン諸島（船舶）"]
[null,null,null,null,null,null,"397","バミューダ・英（船舶","397 バミューダ・英（船舶"]
[null,null,null,null,null,null,"398","バハマ（船舶）","398 バハマ（船舶）"]
[null,null,null,null,null,null,"399","パナマ（船舶）","399 パナマ（船舶）"]
[null,null,null,null,null,null,"401","コロンビア","401 コロンビア"]
[null,null,null,null,null,null,"402","ベネズエラ","402 ベネズエラ"]
[null,null,null,null,null,null,"403","ガイアナ","403 ガイアナ"]
[null,null,null,null,null,null,"404","スリナム","404 スリナム"]
[null,null,null,null,null,null,"405","仏領ギアナ","405 仏領ギアナ"]
[null,null,null,null,null,null,"406","エクアドル","406 エクアドル"]
[null,null,null,null,null,null,"407","ペルー","407 ペルー"]
[null,null,null,null,null,null,"408","ボリビア","408 ボリビア"]
[null,null,null,null,null,null,"409","チリ","409 チリ"]
[null,null,null,null,null,null,"410","ブラジル","410 ブラジル"]
[null,null,null,null,null,null,"411","パラグアイ","411 パラグアイ"]
[null,null,null,null,null,null,"412","ウルグアイ","412 ウルグアイ"]
[null,null,null,null,null,null,"413","アルゼンチン","413 アルゼンチン"]
[null,null,null,null,null,null,"414","フォークランド（マル","414 フォークランド（マル"]
[null,null,null,null,null,null,"415","英領南極基地","415 英領南極基地"]
[null,null,null,null,null,null,"501","モロッコ","501 モロッコ"]
[null,null,null,null,null,null,"502","セウタ及びメリリャ（","502 セウタ及びメリリャ（"]
[null,null,null,null,null,null,"503","アルジェリア","503 アルジェリア"]
[null,null,null,null,null,null,"504","チュニジア","504 チュニジア"]
[null,null,null,null,null,null,"505","リビア","505 リビア"]
[null,null,null,null,null,null,"506","エジプト","506 エジプト"]
[null,null,null,null,null,null,"507","スーダン","507 スーダン"]
[null,null,null,null,null,null,"508","西サハラ","508 西サハラ"]
[null,null,null,null,null,null,"509","モーリタニア","509 モーリタニア"]
[null,null,null,null,null,null,"510","セネガル","510 セネガル"]
[null,null,null,null,null,null,"511","ガンビア","511 ガンビア"]
[null,null,null,null,null,null,"512","ギニアビサウ","512 ギニアビサウ"]
[null,null,null,null,null,null,"513","ギニア","513 ギニア"]
[null,null,null,null,null,null,"514","シエラレオネ","514 シエラレオネ"]
[null,null,null,null,null,null,"515","リベリア","515 リベリア"]
[null,null,null,null,null,null,"516","コートジボワール","516 コートジボワール"]
[null,null,null,null,null,null,"517","ガーナ","517 ガーナ"]
[null,null,null,null,null,null,"518","トーゴ","518 トーゴ"]
[null,null,null,null,null,null,"519","ベナン","519 ベナン"]
[null,null,null,null,null,null,"520","マリ","520 マリ"]
[null,null,null,null,null,null,"521","ブルキナファソ",{"$f":"G197&\" \"&H197","v":"521 ブルキナファソ"}]
[null,null,null,null,null,null,"522","カーボベルデ","522 カーボベルデ"]
[null,null,null,null,null,null,"523","カナリア諸島（西）","523 カナリア諸島（西）"]
[null,null,null,null,null,null,"524","ナイジェリア","524 ナイジェリア"]
[null,null,null,null,null,null,"525","ニジェール","525 ニジェール"]
[null,null,null,null,null,null,"526","ルワンダ","526 ルワンダ"]
[null,null,null,null,null,null,"527","カメルーン","527 カメルーン"]
[null,null,null,null,null,null,"528","チャド","528 チャド"]
[null,null,null,null,null,null,"529","中央アフリカ共和国","529 中央アフリカ共和国"]
[null,null,null,null,null,null,"530","赤道ギニア","530 赤道ギニア"]
[null,null,null,null,null,null,"531","ガボン","531 ガボン"]
[null,null,null,null,null,null,"532","コンゴ共和国","532 コンゴ共和国"]
[null,null,null,null,null,null,"533","コンゴ民主共和国","533 コンゴ民主共和国"]
[null,null,null,null,null,null,"534","ブルンジ","534 ブルンジ"]
[null,null,null,null,null,null,"535","アンゴラ","535 アンゴラ"]
[null,null,null,null,null,null,"536","サントメ・プリンシペ","536 サントメ・プリンシペ"]
[null,null,null,null,null,null,"537","セントヘレナ島（英）","537 セントヘレナ島（英）"]
[null,null,null,null,null,null,"538","エチオピア","538 エチオピア"]
[null,null,null,null,null,null,"539","ジブチ","539 ジブチ"]
[null,null,null,null,null,null,"540","ソマリア","540 ソマリア"]
[null,null,null,null,null,null,"541","ケニア","541 ケニア"]
[null,null,null,null,null,null,"542","ウガンダ","542 ウガンダ"]
[null,null,null,null,null,null,"543","タンザニア","543 タンザニア"]
[null,null,null,null,null,null,"544","セーシェル","544 セーシェル"]
[null,null,null,null,null,null,"545","モザンビーク","545 モザンビーク"]
[null,null,null,null,null,null,"546","マダガスカル","546 マダガスカル"]
[null,null,null,null,null,null,"547","モーリシャス","547 モーリシャス"]
[null,null,null,null,null,null,"548","レユニオン（仏）","548 レユニオン（仏）"]
[null,null,null,null,null,null,"549","ジンバブエ","549 ジンバブエ"]
[null,null,null,null,null,null,"550","ナミビア","550 ナミビア"]
[null,null,null,null,null,null,"551","南アフリカ共和国","551 南アフリカ共和国"]
[null,null,null,null,null,null,"552","レソト","552 レソト"]
[null,null,null,null,null,null,"553","マラウイ","553 マラウイ"]
[null,null,null,null,null,null,"554","ザンビア","554 ザンビア"]
[null,null,null,null,null,null,"555","ボツワナ","555 ボツワナ"]
[null,null,null,null,null,null,"556","スワジランド","556 スワジランド"]
[null,null,null,null,null,null,"557","英領インド洋地域","557 英領インド洋地域"]
[null,null,null,null,null,null,"558","コモロ","558 コモロ"]
[null,null,null,null,null,null,"559","エリトリア","559 エリトリア"]
[null,null,null,null,null,null,"560","南スーダン共和国","560 南スーダン共和国"]
[null,null,null,null,null,null,"580","マディラ諸島（葡）","580 マディラ諸島（葡）"]
[null,null,null,null,null,null,"598","マディラ（葡）（船舶","598 マディラ（葡）（船舶"]
[null,null,null,null,null,null,"599","リベリア（船舶）","599 リベリア（船舶）"]
[null,null,null,null,null,null,"601","オーストラリア","601 オーストラリア"]
[null,null,null,null,null,null,"602","パプアニューギニア","602 パプアニューギニア"]
[null,null,null,null,null,null,"605","その他オーストラリア","605 その他オーストラリア"]
[null,null,null,null,null,null,"606","ニュージーランド","606 ニュージーランド"]
[null,null,null,null,null,null,"607","クック諸島","607 クック諸島"]
[null,null,null,null,null,null,"608","トケラウ諸島（ニュー","608 トケラウ諸島（ニュー"]
[null,null,null,null,null,null,"609","ニウェ島（ニュージー","609 ニウェ島（ニュージー"]
[null,null,null,null,null,null,"610","サモア独立国","610 サモア独立国"]
[null,null,null,null,null,null,"611","バヌアツ","611 バヌアツ"]
[null,null,null,null,null,null,"612","フィジー","612 フィジー"]
[null,null,null,null,null,null,"613","ソロモン","613 ソロモン"]
[null,null,null,null,null,null,"614","トンガ","614 トンガ"]
[null,null,null,null,null,null,"615","キリバス","615 キリバス"]
[null,null,null,null,null,null,"616","ピトケアン諸島（英）","616 ピトケアン諸島（英）"]
[null,null,null,null,null,null,"617","ナウル","617 ナウル"]
[null,null,null,null,null,null,"618","ニューカレドニア（仏","618 ニューカレドニア（仏"]
[null,null,null,null,null,null,"619","仏領ポリネシア","619 仏領ポリネシア"]
[null,null,null,null,null,null,"620","グァム（米）","620 グァム（米）"]
[null,null,null,null,null,null,"621","米領サモア","621 米領サモア"]
[null,null,null,null,null,null,"622","米領オセアニア","622 米領オセアニア"]
[null,null,null,null,null,null,"623","マリアナ・マーシャル","623 マリアナ・マーシャル"]
[null,null,null,null,null,null,"624","ツバル",{"$f":"G261&\" \"&H261","v":"624 ツバル"}]
[null,null,null,null,null,null,"625","マーシャル諸島","625 マーシャル諸島"]
[null,null,null,null,null,null,"626","ミクロネシア","626 ミクロネシア"]
[null,null,null,null,null,null,"627","北マリアナ諸島（米）","627 北マリアナ諸島（米）"]
[null,null,null,null,null,null,"628","パラオ","628 パラオ"]
[null,null,null,null,null,null,"680","ノーフォーク島（豪）","680 ノーフォーク島（豪）"]
[null,null,null,null,null,null,"681","タヒチ（仏）","681 タヒチ（仏）"]
[null,null,null,null,null,null,"682","ケルマディック諸島（","682 ケルマディック諸島（"]
[null,null,null,null,null,null,"683","ミッドウェー諸島（米","683 ミッドウェー諸島（米"]
[null,null,null,null,null,null,"684","ソサエティ諸島（仏）","684 ソサエティ諸島（仏）"]
[null,null,null,null,null,null,"685","ウェーク島（米）","685 ウェーク島（米）"]
[null,null,null,null,null,null,"686","ワリス・フテュナ諸島","686 ワリス・フテュナ諸島"]
[null,null,null,null,null,null,"687","クリスマス島（豪）","687 クリスマス島（豪）"]
[null,null,null,null,null,null,"688","ココス諸島（豪）","688 ココス諸島（豪）"]
[null,null,null,null,null,null,"689","ジョンストン島（米）","689 ジョンストン島（米）"]
[null,null,null,null,null,null,"690","ツアモツ諸島（仏）","690 ツアモツ諸島（仏）"]
[null,null,null,null,null,null,"691","マルケサス諸島（仏）","691 マルケサス諸島（仏）"]
[null,null,null,null,null,null,"692","仏領ポリネシア","692 仏領ポリネシア"]
[null,null,null,null,null,null,"698","マーシャル諸島（船舶","698 マーシャル諸島（船舶"]
[null,null,null,null,null,null,"699","バヌアツ（船舶）","699 バヌアツ（船舶）"]
[null,null,null,null,null,null,"790","公海等","790 公海等"]
[null,null,null,null,null,null,"950","＊","950 ＊"]
[null,null,null,null,null,null,"951","＊","951 ＊"]
[null,null,null,null,null,null,"952","＊","952 ＊"]
[null,null,null,null,null,null,"953","＊","953 ＊"]
[null,null,null,null,null,null,"954","＊","954 ＊"]
[null,null,null,null,null,null,"955","＊","955 ＊"]
[null,null,null,null,null,null,"956","＊","956 ＊"]
[null,null,null,null,null,null,"957","","957 "]
[null,null,null,null,null,null,"958","＊","958 ＊"]
[null,null,null,null,null,null,"959","＊","959 ＊"]
[null,null,null,null,null,null,"960","＊","960 ＊"]
[null,null,null,null,null,null,"961","＊","961 ＊"]
[null,null,null,null,null,null,"962","＊","962 ＊"]
[null,null,null,null,null,null,"999","","999 "]

{"sheet":"Col_info","index":4,"n_rows":201,"n_cols":10,"rows_kept":201,"cut":false,"hidden":true,"merged":[]}
["タイトル","出力桁数","ソートNo.","連動種別","属性","入力桁数","小数部桁数","コード一覧","固定値",1]
["シートID",4,1,null,"CHAR",4,null,null,"2110",2]
["処理種別",1,2,null,"CHAR",1,null,"処理種別","2",3]
["証券番号－\n本支店",2,3,null,"CHAR",null,null,"本支店",null,4]
["証券番号－\n特約コード",9,4,null,"CHAR",9,null,null,null,5]
["証券番号－\n年度",2,5,null,"CHAR",2,null,null,null,6]
["証券番号－\n一連番号",6,6,null,"CHAR",6,null,null,null,7]
["枝番",2,7,null,"CHAR",2,null,null,null,8]
["履歴番号",2,8,null,"CHAR",2,null,null,null,9]
["契約形態",2,9,null,"CHAR",null,null,"契約形態",null,15]
["個別・包括区分",1,10,null,"CHAR",1,null,null,"4",176]
["船積前\r\nてん補種別",1,11,null,"CHAR",1,null,"船積前てん補種別",null,28]
["船積後\r\nてん補種別",1,12,null,"CHAR",1,null,"船積後てん補種別",null,29]
["増加費用\r\nてん補種別",1,13,null,"CHAR",1,null,"てん補種別"," ",177]
["支払区分",1,14,null,"CHAR",1,null,null,"1",178]
["徴収区分",1,15,null,"CHAR",null,null,"徴収区分","1",30]
["内諾番号－\n年度",4,16,null,"CHAR",2,null,null,null,34]
["内諾番号－\n一連番号",8,16.2,null,"CHAR",6,null,null,null,35]
["確認管理番号－\n年度",2,17,null,"CHAR",2,null,null,null,32]
["確認管理番号－\n一連番号",6,17.100000000000001,null,"CHAR",6,null,null,null,33]
["他の保険契約",1,18,null,"CHAR",null,null,"有無",null,50]
["特殊契約\r－\nエスカレーションクローズ",1,19,null,"CHAR",null,null,"有無",null,37]
["特殊契約\r－\n円約款",1,20,null,"CHAR",null,null,"有無",null,38]
["特殊契約－\r\nキャッシュオプション",1,21,null,"CHAR",null,null,"有無",null,39]
["特殊契約\r－\n完成納期",1,22,null,"CHAR",null,null,"有無",null,40]
["特約商品－\r\nフルターン有無",1,23,null,"CHAR",null,null,"有無",null,41]
["特約商品－\r\nフルターン保険期間",3,24,null,"NUM",3,null,null,null,42]
["特約商品\r－\n共同契約\rてん補範囲",1,25,null,"CHAR",null,null,"有無",null,43]
["特約商品\r\n－外貨建",1,26,null,"CHAR",null,null,"有無",null,49]
["特約商品－\r\nライセンス有無",1,27,null,"CHAR",null,null,"有無",null,44]
["特約商品－\r\nライセンス支払限度額",15,28,null,"NUM",15,"2",null,null,45]
["特約商品\r\n－支出費用\r有無",1,29,null,"CHAR",null,null,"有無",null,46]
["特約商品－\r\n支出費用保険期間",3,30,null,"NUM",3,null,null,null,47]
["特約商品－\r\n支出費用保険対象額",15,31,null,"NUM",15,2,null,null,48]
["特約商品\r\n－予備欄",3,32,null,"CHAR",3,null,null,null,180]
["申込者",9,33,null,"CHAR",9,null,null,null,10]
["被保険者",9,34,null,"CHAR",9,null,null,null,11]
["被保険者部門",6,35,null,"CHAR",6,null,null,null,12]
["保険金受取人",9,36,null,"CHAR",9,null,null,null,13]
["内変申請書\n提出日",6,37,null,"CHAR",6,null,null,null,14]
["変更事由コード",2,38,null,"CHAR",2,null,"変更事由","01",20]
["元枝番",2,39,null,"CHAR",2,null,null,null,21]
["輸出契約等\n締結日",6,40,null,"CHAR",6,null,null,null,16]
["輸出契約等\n変更日",6,41,null,"CHAR",6,null,null,null,17]
["輸出契約等\r\n発効日",6,42,null,"CHAR",6,null,null,null,18]
["技術等提供\r\n開始日",6,43,null,"CHAR",6,null,null,null,181]
["国内販売\r\n締結日",6,44,null,"CHAR",6,null,null,null,182]
["貨物引渡日",6,45,null,"CHAR",6,null,null,null,183]
["輸出契約等\n番号",25,46,null,"CHAR",25,null,null,null,25]
["リファレンス番号",15,47,null,"CHAR",15,null,null,null,27]
["輸出契約等元本",15,48,null,"NUM",15,2,null,null,26]
["通貨",3,49,null,"CHAR","3",null,"通貨",null,51]
["為替換算率",10,50,null,"NUM",10,"6",null,null,52]
["貨物",6,51,null,"CHAR",6,null,null,null,53]
["受渡条件",1,52,null,"CHAR",null,null,"受渡条件",null,54]
["ｴﾋﾞﾃﾞﾝｽの有無",1,53,null,"CHAR",1,null,null,"1",184]
["発効条件の\r\n有無","1",54,null,"CHAR",null,null,"有無",null,19]
["仕向国",3,55,null,"CHAR",3,null,"国名",null,55]
["支払国",3,56,null,"CHAR",3,null,"国名",null,56]
["支払人",7,57,null,"CHAR",7,null,null,null,57]
["保証国",3,58,null,"CHAR",3,null,"国名",null,60]
["保証人",7,59,null,"CHAR",7,null,null,null,61]
["買契約相手国",3,60,null,"CHAR",3,null,"国名",null,64]
["売契約相手国",3,61,null,"CHAR",3,null,"国名",null,66]
["売契約相手方",7,62,null,"CHAR",7,null,null,null,67]
["船主国",3,63,null,"CHAR",3,null,"国名",null,179]
["船積国",3,64,null,"CHAR",3,null,"国名",null,65]
["船積前付保率（非常）",3,65,null,"NUM",3,null,null,null,185]
["船積前付保率（信用）",3,66,null,"NUM",3,null,null,null,186]
["船積後付保率（非常）",3,67,null,"NUM",3,null,null,null,187]
["船積後付保率（信用）",3,68,null,"NUM",3,null,null,null,188]
["増加費用保険対象額",15,69,null,"NUM",15,null,null,null,189]
["増加費用\r\n付保率",3,70,null,"NUM",3,null,null,null,190]
["船積後付保率（非常）","4",71,null,"NUM",null,null,"船積後付保率（非常）",null,76]
["予備1",29,71.2,null,"CHAR",29,null,null,null,191]
["船積No",2,72,null,"CHAR",2,null,null,"01",70]
["船積修正削除フラグ",1,73,null,"CHAR",1,null,"修正削除フラグ","3",71]
["Ｆ／Ｓ\n予定日",6,74,null,"CHAR",6,null,null,null,72]
["Ｌ／Ｓ\n予定日",6,75,null,"CHAR",6,null,null,null,73]
["船積前\n保険対象額",15,76,null,"NUM",15,2,null,null,74]
["船積後\n保険対象額",15,77,null,"NUM",15,2,null,null,75]
["決済修正\n削除フラグ１",1,78,"決済方法１","CHAR",1,null,"修正削除フラグ","3",77]
["決済種別１",1,79,"決済方法１","CHAR",1,null,null,"1",171]
["決済予定日１",6,80,null,"CHAR",6,null,null,null,78]
["決済方法１",2,81,null,"CHAR",2,null,"決済方法",null,79]
["決済起算方式１",1,82,null,"CHAR",1,null,"起算方式",null,80]
["ユーザンス\n月日指定１",1,83,null,"CHAR",1,null,"ユーザンス月日指定",null,82]
["ユーザンス\n期間１",3,84,null,"NUM",3,null,null,null,83]
["決済予備１",4,85,null,"CHAR",4,null,null,null,192]
["決済支払保証１",2,86,null,"CHAR",2,null,"支払保証",null,84]
["決済元本１",15,87,null,"NUM",15,"2",null,null,81]
["決済金利１",15,88,null,"NUM",15,"2",null,null,85]
["決済修正\n削除フラグ２",1,89,"決済方法２","CHAR",1,null,"修正削除フラグ","3",86]
["決済種別２",1,90,"決済方法２","CHAR",1,null,null,"1",172]
["決済予定日２",6,91,null,"CHAR",6,null,null,null,87]
["決済方法２",2,92,null,"CHAR",2,null,"決済方法",null,88]
["決済起算方式２",1,93,null,"CHAR",1,null,"起算方式",null,89]
["ユーザンス\n月日指定２",1,94,null,"CHAR",1,null,"ユーザンス月日指定",null,91]
["ユーザンス\n期間２",3,95,null,"NUM",3,null,null,null,92]
["決済予備２",4,96,null,"CHAR",4,null,null,null,193]
["決済支払保証２",2,97,null,"CHAR",15,2,"支払保証",null,93]
["決済元本２",15,98,null,"NUM",15,"2",null,null,90]
["決済金利２",15,99,null,"NUM",15,"2",null,null,94]
["決済修正\n削除フラグ３",1,100,"決済方法３","CHAR",2,null,"修正削除フラグ","3",95]
["決済種別３",1,101,"決済方法３","CHAR",1,null,null,"1",173]
["決済予定日３",6,102,null,"CHAR",6,null,null,null,96]
["決済方法３",2,103,null,"CHAR",2,null,"決済方法",null,97]
["決済起算方式３",1,104,null,"CHAR",1,null,"起算方式",null,98]
["ユーザンス\n月日指定３",1,105,null,"CHAR",1,null,"ユーザンス月日指定",null,100]
["ユーザンス\n期間３",3,106,null,"NUM",3,null,null,null,101]
["決済予備３",4,107,null,"CHAR",4,null,null,null,194]
["決済支払保証３",2,108,null,"CHAR",2,null,"支払保証",null,102]
["決済元本３",15,109,null,"NUM",15,"2",null,null,99]
["決済金利３",15,110,null,"NUM",15,"2",null,null,103]
["決済修正\n削除フラグ４",1,111,"決済方法４","CHAR",1,null,"修正削除フラグ","3",104]
["決済種別４",1,112,"決済方法４","CHAR",1,null,null,"1",174]
["決済予定日４",6,113,null,"CHAR",6,null,null,null,105]
["決済方法４",2,114,null,"CHAR",2,null,"決済方法",null,106]
["決済起算方式４",1,115,null,"CHAR",1,null,"起算方式",null,107]
["ユーザンス\n月日指定４",1,116,null,"NUM",1,null,"ユーザンス月日指定",null,109]
["ユーザンス\n期間４",3,117,null,"NUM",3,null,null,null,110]
["決済予備４",4,118,null,"CHAR",4,null,null,null,195]
["決済支払保証４",2,119,null,"CHAR",15,2,"支払保証",null,111]
["決済元本４",15,120,null,"NUM",15,"2",null,null,108]
["決済金利４",15,121,null,"NUM",15,"2",null,null,112]
["決済修正\n削除フラグ５",1,122,"決済方法５","CHAR",1,null,"修正削除フラグ","3",113]
["決済種別５",1,123,"決済方法５","CHAR",1,null,null,"1",175]
["決済予定日５",6,124,null,"CHAR",6,null,null,null,114]
["決済方法５",2,125,null,"CHAR",2,null,"決済方法",null,115]
["決済起算方式５",1,126,null,"CHAR",1,null,"起算方式",null,116]
["ユーザンス\n月日指定５",1,127,null,"CHAR",1,null,"ユーザンス月日指定",null,118]
["ユーザンス\n期間５",3,128,null,"NUM",3,null,null,null,119]
["決済予備５",4,129,null,"CHAR",4,null,null,null,196]
["決済支払保証５",2,130,null,"CHAR",2,null,"支払保証",null,120]
["決済元本５",15,131,null,"NUM",15,"2",null,null,117]
["決済金利５",15,132,null,"NUM",15,"2",null,null,121]
["受理本支店",2,133,null,"CHAR",2,null,null,null,168]
["受理日",6,134,null,"CHAR",6,null,null,null,169]
["受理番号",5,135,null,"CHAR",5,null,null,null,170]
["予備2",318,136,null,"CHAR",318,null,null,null,197]
["変更事項\n（新）",null,null,null,null,null,null,null,null,22]
["変更事項（旧）",null,null,null,null,null,null,null,null,23]
["変更理由",null,null,null,null,null,null,null,null,24]
["分割徴収予定日",6,null,null,"CHAR",null,null,null,null,31]
["事前承認番号",null,null,null,null,null,null,null,null,36]
["支払人氏名",null,null,null,null,null,null,null,null,58]
["支払人住所",null,null,null,null,null,null,null,null,59]
["保証人氏名",null,null,null,null,null,null,null,null,62]
["保証人住所",null,null,null,null,null,null,null,null,63]
["売契約相手方氏名",null,null,null,null,null,null,null,null,68]
["売契約相手方住所",null,null,null,null,null,null,null,null,69]
["決済修正\n削除フラグ６",1,null,null,"CHAR",1,null,"修正削除フラグ",null,122]
["決済予定日６",6,null,null,"CHAR",6,null,null,null,123]
["決済方法６",2,null,null,"CHAR",2,null,"決済方法",null,124]
["決済起算方式６",1,null,null,"CHAR",1,null,"起算方式",null,125]
["決済元本６",15,null,null,"NUM",15,"2",null,null,126]
["ユーザンス\n月日指定６",1,null,null,"CHAR",1,null,"ユーザンス月日指定",null,127]
["ユーザンス\n期間６",3,null,null,"CHAR",3,null,null,null,128]
["決済支払保証６",2,null,null,"CHAR",2,null,"支払保証",null,129]
["決済金利６",15,null,null,"NUM",15,"2",null,null,130]
["決済修正\n削除フラグ７",1,null,null,"CHAR",1,null,"修正削除フラグ",null,131]
["決済予定日７",6,null,null,"CHAR",6,null,null,null,132]
["決済方法７",2,null,null,"CHAR",2,null,"決済方法",null,133]
["決済起算方式７",1,null,null,"CHAR",1,null,"起算方式",null,134]
["決済元本７",15,null,null,"NUM",15,"2",null,null,135]
["ユーザンス\n月日指定７",1,null,null,"CHAR",1,null,"ユーザンス月日指定",null,136]
["ユーザンス\n期間７",3,null,null,"CHAR",3,null,null,null,137]
["決済支払保証７",2,null,null,"CHAR",2,null,"支払保証",null,138]
["決済金利７",15,null,null,"NUM",15,"2",null,null,139]
["決済修正\n削除フラグ８",1,null,null,"CHAR",1,null,"修正削除フラグ",null,140]
["決済予定日８",6,null,null,"CHAR",6,null,null,null,141]
["決済方法８",2,null,null,"CHAR",2,null,"決済方法",null,142]
["決済起算方式８",1,null,null,"CHAR",1,null,"起算方式",null,143]
["決済元本８",15,null,null,"NUM",15,"2",null,null,144]
["ユーザンス\n月日指定８",1,null,null,"CHAR",1,null,"ユーザンス月日指定",null,145]
["ユーザンス\n期間８",3,null,null,"CHAR",3,null,null,null,146]
["決済支払保証８",2,null,null,"CHAR",2,null,"支払保証",null,147]
["決済金利８",15,null,null,"NUM",15,"2",null,null,148]
["決済修正\n削除フラグ９",1,null,null,"CHAR",1,null,"修正削除フラグ",null,149]
["決済予定日９",6,null,null,"CHAR",6,null,null,null,150]
["決済方法９",2,null,null,"CHAR",2,null,"決済方法",null,151]
["決済起算方式９",1,null,null,"CHAR",1,null,"起算方式",null,152]
["決済元本９",15,null,null,"NUM",15,"2",null,null,153]
["ユーザンス\n月日指定９",1,null,null,"CHAR",1,null,"ユーザンス月日指定",null,154]
["ユーザンス\n期間９",3,null,null,"CHAR",3,null,null,null,155]
["決済支払保証９",2,null,null,"CHAR",2,null,"支払保証",null,156]
["決済金利９",15,null,null,"NUM",15,"2",null,null,157]
["決済修正\n削除フラグ１０",1,null,null,"CHAR",1,null,"修正削除フラグ",null,158]
["決済予定日１０",6,null,null,"CHAR",6,null,null,null,159]
["決済方法１０",2,null,null,"CHAR",2,null,"決済方法",null,160]
["決済起算方式１０",1,null,null,"CHAR",1,null,"起算方式",null,161]
["決済元本１０",15,null,null,"NUM",15,"2",null,null,162]
["ユーザンス\n月日指定１０",1,null,null,"CHAR",1,null,"ユーザンス月日指定",null,163]
["ユーザンス\n期間１０",3,null,null,"CHAR",3,null,null,null,164]
["決済支払保証１０",2,null,null,"CHAR",2,null,"支払保証",null,165]
["決済金利１０",15,null,null,"NUM",15,"2",null,null,166]
["その他",null,null,null,null,null,null,null,null,167]
["連絡先担当部課名",null,null,null,null,null,null,null,null,198]
["連絡先担当者名",null,null,null,null,null,null,null,null,199]
["連絡先TEL",null,null,null,null,null,null,null,null,200]
[null,null,null,null,null,null,null,null,null,201]